Workbook

Sheet Vista Principal
B8: Ingresar los datos del préstamo:
B9: Producto | C9: Préstamos Vehiculares (Clientes)
B10: Tipo de Seguro | C10: Seguro de Desgravamen con Devolución
B11: Tarifa | C11: TARIFA TITULAR + CONYUGE
B13: Valor del Vehiculo | C13: 120,000.00
B14: Valor de Cuota Inicial | C14: 40,000.00 | D14: =C14/C13 -> 33%
B15: Monto inicial | C15: =C13-C14 -> 80,000.00
B16: Seguro Desempleo | C16: 0.000%
B17: Monto adicional desempleo | C17: =C16*C15 -> 0
B19: Prima de Seguro de Desgravamen/Vida | C19: =IF(C10="Seguro de vida",'Proceso Prima de Seguro'!D13,'Proceso Prima de Seguro'!H16) -> 8.3620% | D19: Más Detalle
B20: Monto adicional del Seguro | C20: =+C19*C15 -> 6,689.61
B21: MAF Inicial | C21: =C15+C17+C20 -> 86,689.61
B23: Empleado | C23: =IF(OR(C9="Préstamos Personales (LD Y PA) (Empleados)",C9 = "Préstamos Vehiculares (Empleados)"),"SI","NO") -> NO
B24: Moneda | C24: Soles
B25: Plazo (meses) | C25: 72
B27: Fecha de Desembolso | C27: =TODAY() -> 2025-05-08
B28: Fecha de 1er Pago | C28: 2024-11-30
B29: Cuota Julio | C29: 1
B30: Cuota Diciembre | C30: 1
B31: TEA (De acuerdo al tarifario) | C31: 24.000%
B32: TEA TOTAL | C32: =+C31 -> 24.000%
B33: Monto del Bien | C33: =C13 -> 120,000.00
B34: Tipo Seguro Vehicular | C34: PC - Camionetas Pick up/con GPS/ Lima
B35: Tasa Seguro Vehicular (Mensual) | C35: =VLOOKUP('Vista Principal'!C34,TarifarioBD!N:O,2,0) -> 0.5317% | D35: Más Detalle
B36: Portes | C36: 0 | P36: 48
B37: Cuota | C37: =(C21+(C35*C33+C36)*P46)/O46 -> 2,581.19
B38: No te olvides presionar el botón para calcular la TCEA:
B39: TCEA | C39: 55.55%
U40: =C21-U46-C17-C20 -> -0.00
B41: Importante: - Las datos del simulador son referenciales. - El otorgamiendo del préstamo esta sujeto a calificación. - La fecha de desembolso, es la fecha de solicitud que ha ingresado en este simulador.
O46: =SUM(O48:O407) -> 44.61 | P46: =SUM(P48:P407) -> 44.61 | U46: =SUM(U48:U407)+V46 -> 80,000.00 | V46: =IF(SUM(U48:U407)<C15,0.01,IF(SUM(U48:U407)>C15,-0.01,IF(SUM(U48:U407)=C15,0,0))) -> -0.01
B47: N° Cuota | C47: Fecha de pago | D47: Día | E47: Fecha de pago | F47: Días | G47: Dias Acumulados | H47: Saldo Inicial | I47: Amortización | J47: Interés | K47: Seguro del Bien | L47: Portes | M47: Cuota Constante | N47: Saldo Final | O47: Factor Cronograma | P47: Factor Cronograma 2 | R47: Vector i,1 Cuota | S47: Vector i,2 Días Acum | T47: Vector i,3 Factor | U47: Vector i,4 Calculo VA
B48: 1 | C48: =C28 -> 2024-11-30 | D48: =IF(B48<=$C$25,WEEKDAY(C48,2),"") -> 6 | E48: =IF(D48=7,C48+1,C48) -> 2024-11-30 | F48: =E48-C27 -> -159 | G48: =F48 -> -159 | H48: =C21 -> 86,689.61 | I48: =IF(B48>C$25,"",M48-L48-K48-J48) -> 9,800.17 | J48: =IF(B48>C$25,"",((1+C$31)^(F48/360)-1)*H48) -> -7,857.02 | K48: =IF(B48>C$25,"",C$33*C$35) -> 638.04 | L48: =IF(B48>C$25,"",C$36) -> 0 | M48: =IF(B48>C$25,"",IF(B48=C$25,H48+J48+K48+L48,IF(AND(C$29=2,MONTH(E48)=7),2*C$37,IF(AND(C$30=2,MONTH(E48)=12),2*C$37,C$37)))) -> 2,581.19 | N48: =IF(B48>C$25,"",H48-I48) -> 76,889.44 | O48: =IFERROR(IF(AND(MONTH(E48)=7,C$29=2),2/(1+C$32)^(G48/360),IF(AND(MONTH(E48)=12,C$30=2),2/(1+C$32)^(G48/360),1/(1+C$32)^(G48/360))),"") -> 1.10 | P48: =IFERROR(1/(1+C$32)^(G48/360),"") -> 1.10 | R48: =IFERROR(I48+J48+K48+L48,"") -> 2,581.19 | S48: =G48 -> -159 | T48: =IFERROR((1+C$39)^(S48/360),"") -> 0.82 | U48: =IFERROR(ROUND(R48/T48,2),"") -> 3,137.39
B49: 2 | C49: =IF(B49>$C$25,"",EDATE(C48,1)) -> 2024-12-30 | D49: 1 | E49: =IF(D49=7,C49+1,C49) -> 2024-12-30 | F49: =IF(B49>C$25,"",E49-E48) -> 30 | G49: =IFERROR(F49+G48,"") -> -129 | H49: =IF(B49>C$25,"",N48) -> 76,889.44 | I49: =IF(B49>C$25,"",M49-L49-K49-J49) -> 552.41 | J49: 1,390.74 | K49: 638.04 | L49: 0 | M49: 2,581.19 | N49: 76,337.03 | O49: 1.08 | P49: 1.08 | R49: =IFERROR(I49+J49+K49+L49,"") -> 2,581.19 | S49: -129 | T49: 0.85 | U49: 3,023.98
B50: 3 | C50: 2025-01-30 | D50: 4 | E50: 2025-01-30 | F50: 31 | G50: -98 | H50: 76,337.03 | I50: 515.95 | J50: 1,427.20 | K50: 638.04 | L50: 0 | M50: 2,581.19 | N50: 75,821.08 | O50: 1.06 | P50: 1.06 | R50: 2,581.19 | S50: -98 | T50: 0.89 | U50: 2,911.09
B51: 4 | C51: 2025-02-28 | D51: 5 | E51: 2025-02-28 | F51: 29 | G51: -69 | H51: 75,821.08 | I51: 617.85 | J51: 1,325.31 | K51: 638.04 | L51: 0 | M51: 2,581.19 | N51: 75,203.23 | O51: 1.04 | P51: 1.04 | R51: 2,581.19 | S51: -69 | T51: 0.92 | U51: 2,809.30
B52: 5 | C52: 2025-03-28 | D52: 5 | E52: 2025-03-28 | F52: 28 | G52: -41 | H52: 75,203.23 | I52: 674.35 | J52: 1,268.80 | K52: 638.04 | L52: 0 | M52: 2,581.19 | N52: 74,528.88 | O52: 1.02 | P52: 1.02 | R52: 2,581.19 | S52: -41 | T52: 0.95 | U52: 2,714.40
B53: 6 | C53: 2025-04-28 | D53: 1 | E53: 2025-04-28 | F53: 31 | G53: -10 | H53: 74,528.88 | I53: 549.75 | J53: 1,393.40 | K53: 638.04 | L53: 0 | M53: 2,581.19 | N53: 73,979.12 | O53: 1.01 | P53: 1.01 | R53: 2,581.19 | S53: -10 | T53: 0.99 | U53: 2,613.07
B54: 7 | C54: 2025-05-28 | D54: 3 | E54: 2025-05-28 | F54: 30 | G54: 20 | H54: 73,979.12 | I54: 605.05 | J54: 1,338.10 | K54: 638.04 | L54: 0 | M54: 2,581.19 | N54: 73,374.07 | O54: 0.99 | P54: 0.99 | R54: 2,581.19 | S54: 20 | T54: 1.02 | U54: 2,518.61
B55: 8 | C55: 2025-06-28 | D55: 6 | E55: 2025-06-28 | F55: 31 | G55: 51 | H55: 73,374.07 | I55: 571.35 | J55: 1,371.81 | K55: 638.04 | L55: 0 | M55: 2,581.19 | N55: 72,802.73 | O55: 0.97 | P55: 0.97 | R55: 2,581.19 | S55: 51 | T55: 1.06 | U55: 2,424.58
B56: 9 | C56: 2025-07-28 | D56: 1 | E56: 2025-07-28 | F56: 30 | G56: 81 | H56: 72,802.73 | I56: 626.33 | J56: 1,316.83 | K56: 638.04 | L56: 0 | M56: 2,581.19 | N56: 72,176.40 | O56: 0.95 | P56: 0.95 | R56: 2,581.19 | S56: 81 | T56: 1.10 | U56: 2,336.94
B57: 10 | C57: 2025-08-28 | D57: 4 | E57: 2025-08-28 | F57: 31 | G57: 112 | H57: 72,176.40 | I57: 593.74 | J57: 1,349.42 | K57: 638.04 | L57: 0 | M57: 2,581.19 | N57: 71,582.66 | O57: 0.94 | P57: 0.94 | R57: 2,581.19 | S57: 112 | T57: 1.15 | U57: 2,249.70
B58: 11 | C58: 2025-09-28 | D58: 7 | E58: 2025-09-29 | F58: 32 | G58: 144 | H58: 71,582.66 | I58: 561.25 | J58: 1,381.90 | K58: 638.04 | L58: 0 | M58: 2,581.19 | N58: 71,021.41 | O58: 0.92 | P58: 0.92 | R58: 2,581.19 | S58: 144 | T58: 1.19 | U58: 2,163.05
B59: 12 | C59: 2025-10-28 | D59: 2 | E59: 2025-10-28 | F59: 29 | G59: 173 | H59: 71,021.41 | I59: 701.74 | J59: 1,241.41 | K59: 638.04 | L59: 0 | M59: 2,581.19 | N59: 70,319.67 | O59: 0.90 | P59: 0.90 | R59: 2,581.19 | S59: 173 | T59: 1.24 | U59: 2,087.42
B60: 13 | C60: 2025-11-28 | D60: 5 | E60: 2025-11-28 | F60: 31 | G60: 204 | H60: 70,319.67 | I60: 628.45 | J60: 1,314.70 | K60: 638.04 | L60: 0 | M60: 2,581.19 | N60: 69,691.22 | O60: 0.89 | P60: 0.89 | R60: 2,581.19 | S60: 204 | T60: 1.28 | U60: 2,009.50
B61: 14 | C61: 2025-12-28 | D61: 7 | E61: 2025-12-29 | F61: 31 | G61: 235 | H61: 69,691.22 | I61: 640.20 | J61: 1,302.95 | K61: 638.04 | L61: 0 | M61: 2,581.19 | N61: 69,051.01 | O61: 0.87 | P61: 0.87 | R61: 2,581.19 | S61: 235 | T61: 1.33 | U61: 1,934.48
B62: 15 | C62: 2026-01-28 | D62: 3 | E62: 2026-01-28 | F62: 30 | G62: 265 | H62: 69,051.01 | I62: 694.19 | J62: 1,248.97 | K62: 638.04 | L62: 0 | M62: 2,581.19 | N62: 68,356.83 | O62: 0.85 | P62: 0.85 | R62: 2,581.19 | S62: 265 | T62: 1.38 | U62: 1,864.55
B63: 16 | C63: 2026-02-28 | D63: 6 | E63: 2026-02-28 | F63: 31 | G63: 296 | H63: 68,356.83 | I63: 665.15 | J63: 1,278.01 | K63: 638.04 | L63: 0 | M63: 2,581.19 | N63: 67,691.68 | O63: 0.84 | P63: 0.84 | R63: 2,581.19 | S63: 296 | T63: 1.44 | U63: 1,794.94
B64: 17 | C64: 2026-03-28 | D64: 6 | E64: 2026-03-28 | F64: 28 | G64: 324 | H64: 67,691.68 | I64: 801.09 | J64: 1,142.07 | K64: 638.04 | L64: 0 | M64: 2,581.19 | N64: 66,890.59 | O64: 0.82 | P64: 0.82 | R64: 2,581.19 | S64: 324 | T64: 1.49 | U64: 1,734.31
B65: 18 | C65: 2026-04-28 | D65: 2 | E65: 2026-04-28 | F65: 31 | G65: 355 | H65: 66,890.59 | I65: 692.56 | J65: 1,250.59 | K65: 638.04 | L65: 0 | M65: 2,581.19 | N65: 66,198.03 | O65: 0.81 | P65: 0.81 | R65: 2,581.19 | S65: 355 | T65: 1.55 | U65: 1,669.56
B66: 19 | C66: 2026-05-28 | D66: 4 | E66: 2026-05-28 | F66: 30 | G66: 385 | H66: 66,198.03 | I66: 745.79 | J66: 1,197.36 | K66: 638.04 | L66: 0 | M66: 2,581.19 | N66: 65,452.24 | O66: 0.79 | P66: 0.79 | R66: 2,581.19 | S66: 385 | T66: 1.60 | U66: 1,609.21
B67: 20 | C67: 2026-06-28 | D67: 7 | E67: 2026-06-29 | F67: 32 | G67: 417 | H67: 65,452.24 | I67: 679.60 | J67: 1,263.55 | K67: 638.04 | L67: 0 | M67: 2,581.19 | N67: 64,772.64 | O67: 0.78 | P67: 0.78 | R67: 2,581.19 | S67: 417 | T67: 1.67 | U67: 1,547.24
B68: 21 | C68: 2026-07-28 | D68: 2 | E68: 2026-07-28 | F68: 29 | G68: 446 | H68: 64,772.64 | I68: 810.97 | J68: 1,132.19 | K68: 638.04 | L68: 0 | M68: 2,581.19 | N68: 63,961.67 | O68: 0.77 | P68: 0.77 | R68: 2,581.19 | S68: 446 | T68: 1.73 | U68: 1,493.13
B69: 22 | C69: 2026-08-28 | D69: 5 | E69: 2026-08-28 | F69: 31 | G69: 477 | H69: 63,961.67 | I69: 747.32 | J69: 1,195.83 | K69: 638.04 | L69: 0 | M69: 2,581.19 | N69: 63,214.35 | O69: 0.75 | P69: 0.75 | R69: 2,581.19 | S69: 477 | T69: 1.80 | U69: 1,437.39
B70: 23 | C70: 2026-09-28 | D70: 1 | E70: 2026-09-28 | F70: 31 | G70: 508 | H70: 63,214.35 | I70: 761.29 | J70: 1,181.86 | K70: 638.04 | L70: 0 | M70: 2,581.19 | N70: 62,453.06 | O70: 0.74 | P70: 0.74 | R70: 2,581.19 | S70: 508 | T70: 1.87 | U70: 1,383.73
B71: 24 | C71: 2026-10-28 | D71: 3 | E71: 2026-10-28 | F71: 30 | G71: 538 | H71: 62,453.06 | I71: 813.53 | J71: 1,129.62 | K71: 638.04 | L71: 0 | M71: 2,581.19 | N71: 61,639.53 | O71: 0.73 | P71: 0.73 | R71: 2,581.19 | S71: 538 | T71: 1.94 | U71: 1,333.71
B72: 25 | C72: 2026-11-28 | D72: 6 | E72: 2026-11-28 | F72: 31 | G72: 569 | H72: 61,639.53 | I72: 790.74 | J72: 1,152.42 | K72: 638.04 | L72: 0 | M72: 2,581.19 | N72: 60,848.79 | O72: 0.71 | P72: 0.71 | R72: 2,581.19 | S72: 569 | T72: 2.01 | U72: 1,283.92
B73: 26 | C73: 2026-12-28 | D73: 1 | E73: 2026-12-28 | F73: 30 | G73: 599 | H73: 60,848.79 | I73: 842.55 | J73: 1,100.61 | K73: 638.04 | L73: 0 | M73: 2,581.19 | N73: 60,006.25 | O73: 0.70 | P73: 0.70 | R73: 2,581.19 | S73: 599 | T73: 2.09 | U73: 1,237.51
B74: 27 | C74: 2027-01-28 | D74: 4 | E74: 2027-01-28 | F74: 31 | G74: 630 | H74: 60,006.25 | I74: 821.27 | J74: 1,121.88 | K74: 638.04 | L74: 0 | M74: 2,581.19 | N74: 59,184.98 | O74: 0.69 | P74: 0.69 | R74: 2,581.19 | S74: 630 | T74: 2.17 | U74: 1,191.31
B75: 28 | C75: 2027-02-28 | D75: 7 | E75: 2027-03-01 | F75: 32 | G75: 662 | H75: 59,184.98 | I75: 800.59 | J75: 1,142.57 | K75: 638.04 | L75: 0 | M75: 2,581.19 | N75: 58,384.39 | O75: 0.67 | P75: 0.67 | R75: 2,581.19 | S75: 662 | T75: 2.25 | U75: 1,145.43
B76: 29 | C76: 2027-03-28 | D76: 7 | E76: 2027-03-29 | F76: 28 | G76: 690 | H76: 58,384.39 | I76: 958.11 | J76: 985.04 | K76: 638.04 | L76: 0 | M76: 2,581.19 | N76: 57,426.27 | O76: 0.66 | P76: 0.66 | R76: 2,581.19 | S76: 690 | T76: 2.33 | U76: 1,106.74
B77: 30 | C77: 2027-04-28 | D77: 3 | E77: 2027-04-28 | F77: 30 | G77: 720 | H77: 57,426.27 | I77: 904.45 | J77: 1,038.70 | K77: 638.04 | L77: 0 | M77: 2,581.19 | N77: 56,521.82 | O77: 0.65 | P77: 0.65 | R77: 2,581.19 | S77: 720 | T77: 2.42 | U77: 1,066.73
B78: 31 | C78: 2027-05-28 | D78: 5 | E78: 2027-05-28 | F78: 30 | G78: 750 | H78: 56,521.82 | I78: 920.81 | J78: 1,022.34 | K78: 638.04 | L78: 0 | M78: 2,581.19 | N78: 55,601.01 | O78: 0.64 | P78: 0.64 | R78: 2,581.19 | S78: 750 | T78: 2.51 | U78: 1,028.17
B79: 32 | C79: 2027-06-28 | D79: 1 | E79: 2027-06-28 | F79: 31 | G79: 781 | H79: 55,601.01 | I79: 903.63 | J79: 1,039.52 | K79: 638.04 | L79: 0 | M79: 2,581.19 | N79: 54,697.38 | O79: 0.63 | P79: 0.63 | R79: 2,581.19 | S79: 781 | T79: 2.61 | U79: 989.79
B80: 33 | C80: 2027-07-28 | D80: 3 | E80: 2027-07-28 | F80: 30 | G80: 811 | H80: 54,697.38 | I80: 953.81 | J80: 989.34 | K80: 638.04 | L80: 0 | M80: 2,581.19 | N80: 53,743.57 | O80: 0.62 | P80: 0.62 | R80: 2,581.19 | S80: 811 | T80: 2.71 | U80: 954.01
B81: 34 | C81: 2027-08-28 | D81: 6 | E81: 2027-08-28 | F81: 31 | G81: 842 | H81: 53,743.57 | I81: 938.36 | J81: 1,004.80 | K81: 638.04 | L81: 0 | M81: 2,581.19 | N81: 52,805.21 | O81: 0.60 | P81: 0.60 | R81: 2,581.19 | S81: 842 | T81: 2.81 | U81: 918.39
B82: 35 | C82: 2027-09-28 | D82: 2 | E82: 2027-09-28 | F82: 31 | G82: 873 | H82: 52,805.21 | I82: 955.90 | J82: 987.25 | K82: 638.04 | L82: 0 | M82: 2,581.19 | N82: 51,849.30 | O82: 0.59 | P82: 0.59 | R82: 2,581.19 | S82: 873 | T82: 2.92 | U82: 884.11
B83: 36 | C83: 2027-10-28 | D83: 4 | E83: 2027-10-28 | F83: 30 | G83: 903 | H83: 51,849.30 | I83: 1,005.33 | J83: 937.83 | K83: 638.04 | L83: 0 | M83: 2,581.19 | N83: 50,843.98 | O83: 0.58 | P83: 0.58 | R83: 2,581.19 | S83: 903 | T83: 3.03 | U83: 852.15
B84: 37 | C84: 2027-11-28 | D84: 7 | E84: 2027-11-29 | F84: 32 | G84: 935 | H84: 50,843.98 | I84: 961.61 | J84: 981.54 | K84: 638.04 | L84: 0 | M84: 2,581.19 | N84: 49,882.36 | O84: 0.57 | P84: 0.57 | R84: 2,581.19 | S84: 935 | T84: 3.15 | U84: 819.33
B85: 38 | C85: 2027-12-28 | D85: 2 | E85: 2027-12-28 | F85: 29 | G85: 964 | H85: 49,882.36 | I85: 1,071.24 | J85: 871.92 | K85: 638.04 | L85: 0 | M85: 2,581.19 | N85: 48,811.13 | O85: 0.56 | P85: 0.56 | R85: 2,581.19 | S85: 964 | T85: 3.26 | U85: 790.68
B86: 39 | C86: 2028-01-28 | D86: 5 | E86: 2028-01-28 | F86: 31 | G86: 995 | H86: 48,811.13 | I86: 1,030.58 | J86: 912.58 | K86: 638.04 | L86: 0 | M86: 2,581.19 | N86: 47,780.55 | O86: 0.55 | P86: 0.55 | R86: 2,581.19 | S86: 995 | T86: 3.39 | U86: 761.16
B87: 40 | C87: 2028-02-28 | D87: 1 | E87: 2028-02-28 | F87: 31 | G87: 1026 | H87: 47,780.55 | I87: 1,049.84 | J87: 893.31 | K87: 638.04 | L87: 0 | M87: 2,581.19 | N87: 46,730.70 | O87: 0.54 | P87: 0.54 | R87: 2,581.19 | S87: 1026 | T87: 3.52 | U87: 732.75
B88: 41 | C88: 2028-03-28 | D88: 2 | E88: 2028-03-28 | F88: 29 | G88: 1055 | H88: 46,730.70 | I88: 1,126.33 | J88: 816.83 | K88: 638.04 | L88: 0 | M88: 2,581.19 | N88: 45,604.38 | O88: 0.53 | P88: 0.53 | R88: 2,581.19 | S88: 1055 | T88: 3.65 | U88: 707.13
B89: 42 | C89: 2028-04-28 | D89: 5 | E89: 2028-04-28 | F89: 31 | G89: 1086 | H89: 45,604.38 | I89: 1,090.53 | J89: 852.62 | K89: 638.04 | L89: 0 | M89: 2,581.19 | N89: 44,513.84 | O89: 0.52 | P89: 0.52 | R89: 2,581.19 | S89: 1086 | T89: 3.79 | U89: 680.73
B90: 43 | C90: 2028-05-28 | D90: 7 | E90: 2028-05-29 | F90: 31 | G90: 1117 | H90: 44,513.84 | I90: 1,110.92 | J90: 832.24 | K90: 638.04 | L90: 0 | M90: 2,581.19 | N90: 43,402.93 | O90: 0.51 | P90: 0.51 | R90: 2,581.19 | S90: 1117 | T90: 3.94 | U90: 655.32
B91: 44 | C91: 2028-06-28 | D91: 3 | E91: 2028-06-28 | F91: 30 | G91: 1147 | H91: 43,402.93 | I91: 1,158.10 | J91: 785.05 | K91: 638.04 | L91: 0 | M91: 2,581.19 | N91: 42,244.82 | O91: 0.50 | P91: 0.50 | R91: 2,581.19 | S91: 1147 | T91: 4.09 | U91: 631.63
B92: 45 | C92: 2028-07-28 | D92: 5 | E92: 2028-07-28 | F92: 30 | G92: 1177 | H92: 42,244.82 | I92: 1,179.05 | J92: 764.11 | K92: 638.04 | L92: 0 | M92: 2,581.19 | N92: 41,065.78 | O92: 0.49 | P92: 0.49 | R92: 2,581.19 | S92: 1177 | T92: 4.24 | U92: 608.79
B93: 46 | C93: 2028-08-28 | D93: 1 | E93: 2028-08-28 | F93: 31 | G93: 1208 | H93: 41,065.78 | I93: 1,175.38 | J93: 767.77 | K93: 638.04 | L93: 0 | M93: 2,581.19 | N93: 39,890.39 | O93: 0.49 | P93: 0.49 | R93: 2,581.19 | S93: 1208 | T93: 4.40 | U93: 586.07
B94: 47 | C94: 2028-09-28 | D94: 4 | E94: 2028-09-28 | F94: 31 | G94: 1239 | H94: 39,890.39 | I94: 1,197.36 | J94: 745.79 | K94: 638.04 | L94: 0 | M94: 2,581.19 | N94: 38,693.03 | O94: 0.48 | P94: 0.48 | R94: 2,581.19 | S94: 1239 | T94: 4.58 | U94: 564.19
B95: 48 | C95: 2028-10-28 | D95: 6 | E95: 2028-10-28 | F95: 30 | G95: 1269 | H95: 38,693.03 | I95: 1,243.29 | J95: 699.86 | K95: 638.04 | L95: 0 | M95: 2,581.19 | N95: 37,449.74 | O95: 0.47 | P95: 0.47 | R95: 2,581.19 | S95: 1269 | T95: 4.75 | U95: 543.79
B96: 49 | C96: 2028-11-28 | D96: 2 | E96: 2028-11-28 | F96: 31 | G96: 1300 | H96: 37,449.74 | I96: 1,242.99 | J96: 700.16 | K96: 638.04 | L96: 0 | M96: 2,581.19 | N96: 36,206.75 | O96: 0.46 | P96: 0.46 | R96: 2,581.19 | S96: 1300 | T96: 4.93 | U96: 523.49
B97: 50 | C97: 2028-12-28 | D97: 4 | E97: 2028-12-28 | F97: 30 | G97: 1330 | H97: 36,206.75 | I97: 1,288.26 | J97: 654.89 | K97: 638.04 | L97: 0 | M97: 2,581.19 | N97: 34,918.49 | O97: 0.45 | P97: 0.45 | R97: 2,581.19 | S97: 1330 | T97: 5.12 | U97: 504.57
B98: 51 | C98: 2029-01-28 | D98: 7 | E98: 2029-01-29 | F98: 32 | G98: 1362 | H98: 34,918.49 | I98: 1,269.05 | J98: 674.10 | K98: 638.04 | L98: 0 | M98: 2,581.19 | N98: 33,649.44 | O98: 0.44 | P98: 0.44 | R98: 2,581.19 | S98: 1362 | T98: 5.32 | U98: 485.14
B99: 52 | C99: 2029-02-28 | D99: 3 | E99: 2029-02-28 | F99: 30 | G99: 1392 | H99: 33,649.44 | I99: 1,334.52 | J99: 608.64 | K99: 638.04 | L99: 0 | M99: 2,581.19 | N99: 32,314.92 | O99: 0.44 | P99: 0.44 | R99: 2,581.19 | S99: 1392 | T99: 5.52 | U99: 467.60
B100: 53 | C100: 2029-03-28 | D100: 3 | E100: 2029-03-28 | F100: 28 | G100: 1420 | H100: 32,314.92 | I100: 1,397.95 | J100: 545.21 | K100: 638.04 | L100: 0 | M100: 2,581.19 | N100: 30,916.97 | O100: 0.43 | P100: 0.43 | R100: 2,581.19 | S100: 1420 | T100: 5.71 | U100: 451.80
B101: 54 | C101: 2029-04-28 | D101: 6 | E101: 2029-04-28 | F101: 31 | G101: 1451 | H101: 30,916.97 | I101: 1,365.13 | J101: 578.03 | K101: 638.04 | L101: 0 | M101: 2,581.19 | N101: 29,551.84 | O101: 0.42 | P101: 0.42 | R101: 2,581.19 | S101: 1451 | T101: 5.93 | U101: 434.94
B102: 55 | C102: 2029-05-28 | D102: 1 | E102: 2029-05-28 | F102: 30 | G102: 1481 | H102: 29,551.84 | I102: 1,408.63 | J102: 534.52 | K102: 638.04 | L102: 0 | M102: 2,581.19 | N102: 28,143.21 | O102: 0.41 | P102: 0.41 | R102: 2,581.19 | S102: 1481 | T102: 6.16 | U102: 419.21
B103: 56 | C103: 2029-06-28 | D103: 4 | E103: 2029-06-28 | F103: 31 | G103: 1512 | H103: 28,143.21 | I103: 1,416.99 | J103: 526.17 | K103: 638.04 | L103: 0 | M103: 2,581.19 | N103: 26,726.22 | O103: 0.41 | P103: 0.41 | R103: 2,581.19 | S103: 1512 | T103: 6.40 | U103: 403.56
B104: 57 | C104: 2029-07-28 | D104: 6 | E104: 2029-07-28 | F104: 30 | G104: 1542 | H104: 26,726.22 | I104: 1,459.74 | J104: 483.41 | K104: 638.04 | L104: 0 | M104: 2,581.19 | N104: 25,266.48 | O104: 0.40 | P104: 0.40 | R104: 2,581.19 | S104: 1542 | T104: 6.64 | U104: 388.98
B105: 58 | C105: 2029-08-28 | D105: 2 | E105: 2029-08-28 | F105: 31 | G105: 1573 | H105: 25,266.48 | I105: 1,470.77 | J105: 472.38 | K105: 638.04 | L105: 0 | M105: 2,581.19 | N105: 23,795.71 | O105: 0.39 | P105: 0.39 | R105: 2,581.19 | S105: 1573 | T105: 6.89 | U105: 374.45
B106: 59 | C106: 2029-09-28 | D106: 5 | E106: 2029-09-28 | F106: 31 | G106: 1604 | H106: 23,795.71 | I106: 1,498.27 | J106: 444.89 | K106: 638.04 | L106: 0 | M106: 2,581.19 | N106: 22,297.44 | O106: 0.38 | P106: 0.38 | R106: 2,581.19 | S106: 1604 | T106: 7.16 | U106: 360.48
B107: 60 | C107: 2029-10-28 | D107: 7 | E107: 2029-10-29 | F107: 31 | G107: 1635 | H107: 22,297.44 | I107: 1,526.28 | J107: 416.88 | K107: 638.04 | L107: 0 | M107: 2,581.19 | N107: 20,771.16 | O107: 0.38 | P107: 0.38 | R107: 2,581.19 | S107: 1635 | T107: 7.44 | U107: 347.02
B108: 61 | C108: 2029-11-28 | D108: 3 | E108: 2029-11-28 | F108: 30 | G108: 1665 | H108: 20,771.16 | I108: 1,567.45 | J108: 375.70 | K108: 638.04 | L108: 0 | M108: 2,581.19 | N108: 19,203.71 | O108: 0.37 | P108: 0.37 | R108: 2,581.19 | S108: 1665 | T108: 7.72 | U108: 334.47
B109: 62 | C109: 2029-12-28 | D109: 5 | E109: 2029-12-28 | F109: 30 | G109: 1695 | H109: 19,203.71 | I109: 1,595.81 | J109: 347.35 | K109: 638.04 | L109: 0 | M109: 2,581.19 | N109: 17,607.90 | O109: 0.36 | P109: 0.36 | R109: 2,581.19 | S109: 1695 | T109: 8.01 | U109: 322.38
B110: 63 | C110: 2030-01-28 | D110: 1 | E110: 2030-01-28 | F110: 31 | G110: 1726 | H110: 17,607.90 | I110: 1,613.96 | J110: 329.20 | K110: 638.04 | L110: 0 | M110: 2,581.19 | N110: 15,993.95 | O110: 0.36 | P110: 0.36 | R110: 2,581.19 | S110: 1726 | T110: 8.32 | U110: 310.35
B111: 64 | C111: 2030-02-28 | D111: 4 | E111: 2030-02-28 | F111: 31 | G111: 1757 | H111: 15,993.95 | I111: 1,644.13 | J111: 299.02 | K111: 638.04 | L111: 0 | M111: 2,581.19 | N111: 14,349.82 | O111: 0.35 | P111: 0.35 | R111: 2,581.19 | S111: 1757 | T111: 8.64 | U111: 298.76
B112: 65 | C112: 2030-03-28 | D112: =IF(B112<=$C$25,WEEKDAY(C112,2),"") -> 4 | E112: 2030-03-28 | F112: 28 | G112: 1785 | H112: 14,349.82 | I112: 1,701.05 | J112: =IF(B112>C$25,"",((1+C$31)^(F112/360)-1)*H112) -> 242.10 | K112: =IF(B112>C$25,"",C$33*C$35) -> 638.04 | L112: =IF(B112>C$25,"",C$36) -> 0 | M112: =IF(B112>C$25,"",IF(B112=C$25,H112+J112+K112+L112,IF(AND(C$29=2,MONTH(E112)=7),2*C$37,IF(AND(C$30=2,MONTH(E112)=12),2*C$37,C$37)))) -> 2,581.19 | N112: =IF(B112>C$25,"",H112-I112) -> 12,648.77 | O112: =IFERROR(IF(AND(MONTH(E112)=7,C$29=2),2/(1+C$32)^(G112/360),IF(AND(MONTH(E112)=12,C$30=2),2/(1+C$32)^(G112/360),1/(1+C$32)^(G112/360))),"") -> 0.34 | P112: =IFERROR(1/(1+C$32)^(G112/360),"") -> 0.34 | R112: 2,581.19 | S112: =G112 -> 1785 | T112: =IFERROR((1+C$39)^(S112/360),"") -> 8.94 | U112: =IFERROR(ROUND(R112/T112,2),"") -> 288.67
B113: 66 | C113: =IF(B113>$C$25,"",EDATE(C112,1)) -> 2030-04-28 | D113: 7 | E113: =IF(D113=7,C113+1,C113) -> 2030-04-29 | F113: =IF(B113>C$25,"",E113-E112) -> 32 | G113: =IFERROR(F113+G112,"") -> 1817 | H113: =IF(B113>C$25,"",N112) -> 12,648.77 | I113: =IF(B113>C$25,"",M113-L113-K113-J113) -> 1,698.97 | J113: 244.18 | K113: 638.04 | L113: 0 | M113: 2,581.19 | N113: 10,949.80 | O113: 0.34 | P113: 0.34 | R113: =IFERROR(I113+J113+K113+L113,"") -> 2,581.19 | S113: 1817 | T113: 9.30 | U113: 277.55
B114: 67 | C114: 2030-05-28 | D114: 2 | E114: 2030-05-28 | F114: 29 | G114: 1846 | H114: 10,949.80 | I114: 1,751.76 | J114: 191.40 | K114: 638.04 | L114: 0 | M114: 2,581.19 | N114: 9,198.04 | O114: 0.33 | P114: 0.33 | R114: 2,581.19 | S114: 1846 | T114: 9.64 | U114: 267.85
B115: 68 | C115: 2030-06-28 | D115: 5 | E115: 2030-06-28 | F115: 31 | G115: 1877 | H115: 9,198.04 | I115: 1,771.19 | J115: 171.97 | K115: 638.04 | L115: 0 | M115: 2,581.19 | N115: 7,426.85 | O115: 0.33 | P115: 0.33 | R115: 2,581.19 | S115: 1877 | T115: 10.01 | U115: 257.85
B116: 69 | C116: 2030-07-28 | D116: 7 | E116: 2030-07-29 | F116: 31 | G116: 1908 | H116: 7,426.85 | I116: 1,804.30 | J116: 138.85 | K116: 638.04 | L116: 0 | M116: 2,581.19 | N116: 5,622.55 | O116: 0.32 | P116: 0.32 | R116: 2,581.19 | S116: 1908 | T116: 10.40 | U116: 248.22
B117: 70 | C117: 2030-08-28 | D117: 3 | E117: 2030-08-28 | F117: 30 | G117: 1938 | H117: 5,622.55 | I117: 1,841.46 | J117: 101.70 | K117: 638.04 | L117: 0 | M117: 2,581.19 | N117: 3,781.09 | O117: 0.31 | P117: 0.31 | R117: 2,581.19 | S117: 1938 | T117: 10.79 | U117: 239.25
B118: 71 | C118: 2030-09-28 | D118: 6 | E118: 2030-09-28 | F118: 31 | G118: 1969 | H118: 3,781.09 | I118: 1,872.46 | J118: 70.69 | K118: 638.04 | L118: 0 | M118: 2,581.19 | N118: 1,908.63 | O118: 0.31 | P118: 0.31 | R118: 2,581.19 | S118: 1969 | T118: 11.21 | U118: 230.32
B119: 72 | C119: 2030-10-28 | D119: 1 | E119: 2030-10-28 | F119: 30 | G119: 1999 | H119: 1,908.63 | I119: 1,908.63 | J119: 34.52 | K119: 638.04 | L119: 0 | M119: 2,581.19 | N119: 0 | O119: 0.30 | P119: 0.30 | R119: 2,581.19 | S119: 1999 | T119: 11.63 | U119: 221.99
B120: 73
B121: 74
B122: 75
B123: 76
B124: 77
B125: 78
B126: 79
B127: 80
B128: 81
B129: 82
B130: 83
B131: 84
B132: 85
B133: 86
B134: 87
B135: 88
B136: 89
B137: 90
B138: 91
B139: 92
B140: 93
B141: 94
B142: 95
B143: 96
B144: 97
B145: 98
B146: 99
B147: 100
B148: 101
B149: 102
B150: 103
B151: 104
B152: 105
B153: 106
B154: 107
B155: 108
B156: 109
B157: 110
B158: 111
B159: 112
B160: 113
B161: 114
B162: 115
B163: 116
B164: 117
B165: 118
B166: 119
B167: 120
B168: 121
B169: 122
B170: 123
B171: 124
B172: 125
B173: 126
B174: 127
B175: 128
B176: 129 | D176: =IF(B176<=$C$25,WEEKDAY(C176,2),"") ->  | J176: =IF(B176>C$25,"",((1+C$31)^(F176/360)-1)*H176) ->  | K176: =IF(B176>C$25,"",C$33*C$35) ->  | L176: =IF(B176>C$25,"",C$36) ->  | M176: =IF(B176>C$25,"",IF(B176=C$25,H176+J176+K176+L176,IF(AND(C$29=2,MONTH(E176)=7),2*C$37,IF(AND(C$30=2,MONTH(E176)=12),2*C$37,C$37)))) ->  | N176: =IF(B176>C$25,"",H176-I176) ->  | O176: =IFERROR(IF(AND(MONTH(E176)=7,C$29=2),2/(1+C$32)^(G176/360),IF(AND(MONTH(E176)=12,C$30=2),2/(1+C$32)^(G176/360),1/(1+C$32)^(G176/360))),"") ->  | P176: =IFERROR(1/(1+C$32)^(G176/360),"") ->  | S176: =G176 ->  | T176: =IFERROR((1+C$39)^(S176/360),"") ->  | U176: =IFERROR(ROUND(R176/T176,2),"") -> 
B177: 130 | C177: =IF(B177>$C$25,"",EDATE(C176,1)) ->  | E177: =IF(D177=7,C177+1,C177) ->  | F177: =IF(B177>C$25,"",E177-E176) ->  | G177: =IFERROR(F177+G176,"") ->  | H177: =IF(B177>C$25,"",N176) ->  | I177: =IF(B177>C$25,"",M177-L177-K177-J177) ->  | R177: =IFERROR(I177+J177+K177+L177,"") -> 
B178: 131
B179: 132
B180: 133
B181: 134
B182: 135
B183: 136
B184: 137
B185: 138
B186: 139
B187: 140
B188: 141
B189: 142
B190: 143
B191: 144
B192: 145
B193: 146
B194: 147
B195: 148
B196: 149
B197: 150
B198: 151
B199: 152
B200: 153
B201: 154
B202: 155
B203: 156
B204: 157
B205: 158
B206: 159
B207: 160
B208: 161
B209: 162
B210: 163
B211: 164
B212: 165
B213: 166
B214: 167
B215: 168
... 192 more rows

Sheet Cronograma (hidden)
B5: Importante: - Las datos del simulador son referenciales. - El otorgamiendo del préstamo esta sujeto a calificación. - La fecha de desembolso, es la fecha de solicitud que ha ingresado en este simulador.
B7: =+'Vista Principal'!B47 -> N° Cuota | C7: =+'Vista Principal'!C47 -> Fecha de pago | D7: =+'Vista Principal'!D47 -> Día | E7: =+'Vista Principal'!E47 -> Fecha de pago | F7: =+'Vista Principal'!F47 -> Días | G7: =+'Vista Principal'!G47 -> Dias Acumulados | H7: =+'Vista Principal'!H47 -> Saldo Inicial | I7: =+'Vista Principal'!I47 -> Amortización | J7: =+'Vista Principal'!J47 -> Interés | K7: =+'Vista Principal'!K47 -> Seguro del Bien | L7: =+'Vista Principal'!L47 -> Portes | M7: =+'Vista Principal'!M47 -> Cuota Constante | N7: =+'Vista Principal'!N47 -> Saldo Final
B8: =+'Vista Principal'!B48 -> 1 | C8: =+'Vista Principal'!C48 -> 2024-11-30 | D8: =+'Vista Principal'!D48 -> 6 | E8: =+'Vista Principal'!E48 -> 2024-11-30 | F8: =+'Vista Principal'!F48 -> -159 | G8: =+'Vista Principal'!G48 -> -159 | H8: =+'Vista Principal'!H48 -> 86689.60926 | I8: =+'Vista Principal'!I48 -> 9800.172764 | J8: =+'Vista Principal'!J48 -> -7857.018195 | K8: =+'Vista Principal'!K48 -> 638.04 | L8: =+'Vista Principal'!L48 -> 0 | M8: =+'Vista Principal'!M48 -> 2581.194569 | N8: =+'Vista Principal'!N48 -> 76889.43649
B9: =+'Vista Principal'!B49 -> 2 | C9: =+'Vista Principal'!C49 -> 2024-12-30 | D9: =+'Vista Principal'!D49 -> 1 | E9: =+'Vista Principal'!E49 -> 2024-12-30 | F9: =+'Vista Principal'!F49 -> 30 | G9: =+'Vista Principal'!G49 -> -129 | H9: =+'Vista Principal'!H49 -> 76889.43649 | I9: =+'Vista Principal'!I49 -> 552.4105442 | J9: =+'Vista Principal'!J49 -> 1390.744025 | K9: =+'Vista Principal'!K49 -> 638.04 | L9: =+'Vista Principal'!L49 -> 0 | M9: =+'Vista Principal'!M49 -> 2581.194569 | N9: =+'Vista Principal'!N49 -> 76337.02595
B10: =+'Vista Principal'!B50 -> 3 | C10: =+'Vista Principal'!C50 -> 2025-01-30 | D10: =+'Vista Principal'!D50 -> 4 | E10: =+'Vista Principal'!E50 -> 2025-01-30 | F10: =+'Vista Principal'!F50 -> 31 | G10: =+'Vista Principal'!G50 -> -98 | H10: =+'Vista Principal'!H50 -> 76337.02595 | I10: =+'Vista Principal'!I50 -> 515.9496093 | J10: =+'Vista Principal'!J50 -> 1427.20496 | K10: =+'Vista Principal'!K50 -> 638.04 | L10: =+'Vista Principal'!L50 -> 0 | M10: =+'Vista Principal'!M50 -> 2581.194569 | N10: =+'Vista Principal'!N50 -> 75821.07634
B11: =+'Vista Principal'!B51 -> 4 | C11: =+'Vista Principal'!C51 -> 2025-02-28 | D11: =+'Vista Principal'!D51 -> 5 | E11: =+'Vista Principal'!E51 -> 2025-02-28 | F11: =+'Vista Principal'!F51 -> 29 | G11: =+'Vista Principal'!G51 -> -69 | H11: =+'Vista Principal'!H51 -> 75821.07634 | I11: =+'Vista Principal'!I51 -> 617.8457754 | J11: =+'Vista Principal'!J51 -> 1325.308794 | K11: =+'Vista Principal'!K51 -> 638.04 | L11: =+'Vista Principal'!L51 -> 0 | M11: =+'Vista Principal'!M51 -> 2581.194569 | N11: =+'Vista Principal'!N51 -> 75203.23057
B12: =+'Vista Principal'!B52 -> 5 | C12: =+'Vista Principal'!C52 -> 2025-03-28 | D12: =+'Vista Principal'!D52 -> 5 | E12: =+'Vista Principal'!E52 -> 2025-03-28 | F12: =+'Vista Principal'!F52 -> 28 | G12: =+'Vista Principal'!G52 -> -41 | H12: =+'Vista Principal'!H52 -> 75203.23057 | I12: =+'Vista Principal'!I52 -> 674.353475 | J12: =+'Vista Principal'!J52 -> 1268.801094 | K12: =+'Vista Principal'!K52 -> 638.04 | L12: =+'Vista Principal'!L52 -> 0 | M12: =+'Vista Principal'!M52 -> 2581.194569 | N12: =+'Vista Principal'!N52 -> 74528.87709
B13: =+'Vista Principal'!B53 -> 6 | C13: =+'Vista Principal'!C53 -> 2025-04-28 | D13: =+'Vista Principal'!D53 -> 1 | E13: =+'Vista Principal'!E53 -> 2025-04-28 | F13: =+'Vista Principal'!F53 -> 31 | G13: =+'Vista Principal'!G53 -> -10 | H13: =+'Vista Principal'!H53 -> 74528.87709 | I13: =+'Vista Principal'!I53 -> 549.754948 | J13: =+'Vista Principal'!J53 -> 1393.399621 | K13: =+'Vista Principal'!K53 -> 638.04 | L13: =+'Vista Principal'!L53 -> 0 | M13: =+'Vista Principal'!M53 -> 2581.194569 | N13: =+'Vista Principal'!N53 -> 73979.12214
B14: =+'Vista Principal'!B54 -> 7 | C14: =+'Vista Principal'!C54 -> 2025-05-28 | D14: =+'Vista Principal'!D54 -> 3 | E14: =+'Vista Principal'!E54 -> 2025-05-28 | F14: =+'Vista Principal'!F54 -> 30 | G14: =+'Vista Principal'!G54 -> 20 | H14: =+'Vista Principal'!H54 -> 73979.12214 | I14: =+'Vista Principal'!I54 -> 605.0510951 | J14: =+'Vista Principal'!J54 -> 1338.103474 | K14: =+'Vista Principal'!K54 -> 638.04 | L14: =+'Vista Principal'!L54 -> 0 | M14: =+'Vista Principal'!M54 -> 2581.194569 | N14: =+'Vista Principal'!N54 -> 73374.07105
B15: =+'Vista Principal'!B55 -> 8 | C15: =+'Vista Principal'!C55 -> 2025-06-28 | D15: =+'Vista Principal'!D55 -> 6 | E15: =+'Vista Principal'!E55 -> 2025-06-28 | F15: =+'Vista Principal'!F55 -> 31 | G15: =+'Vista Principal'!G55 -> 51 | H15: =+'Vista Principal'!H55 -> 73374.07105 | I15: =+'Vista Principal'!I55 -> 571.3453216 | J15: =+'Vista Principal'!J55 -> 1371.809247 | K15: =+'Vista Principal'!K55 -> 638.04 | L15: =+'Vista Principal'!L55 -> 0 | M15: =+'Vista Principal'!M55 -> 2581.194569 | N15: =+'Vista Principal'!N55 -> 72802.72573
B16: =+'Vista Principal'!B56 -> 9 | C16: =+'Vista Principal'!C56 -> 2025-07-28 | D16: =+'Vista Principal'!D56 -> 1 | E16: =+'Vista Principal'!E56 -> 2025-07-28 | F16: =+'Vista Principal'!F56 -> 30 | G16: =+'Vista Principal'!G56 -> 81 | H16: =+'Vista Principal'!H56 -> 72802.72573 | I16: =+'Vista Principal'!I56 -> 626.3292623 | J16: =+'Vista Principal'!J56 -> 1316.825307 | K16: =+'Vista Principal'!K56 -> 638.04 | L16: =+'Vista Principal'!L56 -> 0 | M16: =+'Vista Principal'!M56 -> 2581.194569 | N16: =+'Vista Principal'!N56 -> 72176.39646
B17: =+'Vista Principal'!B57 -> 10 | C17: =+'Vista Principal'!C57 -> 2025-08-28 | D17: =+'Vista Principal'!D57 -> 4 | E17: =+'Vista Principal'!E57 -> 2025-08-28 | F17: =+'Vista Principal'!F57 -> 31 | G17: =+'Vista Principal'!G57 -> 112 | H17: =+'Vista Principal'!H57 -> 72176.39646 | I17: =+'Vista Principal'!I57 -> 593.73717 | J17: =+'Vista Principal'!J57 -> 1349.417399 | K17: =+'Vista Principal'!K57 -> 638.04 | L17: =+'Vista Principal'!L57 -> 0 | M17: =+'Vista Principal'!M57 -> 2581.194569 | N17: =+'Vista Principal'!N57 -> 71582.65929
B18: =+'Vista Principal'!B58 -> 11 | C18: =+'Vista Principal'!C58 -> 2025-09-28 | D18: =+'Vista Principal'!D58 -> 7 | E18: =+'Vista Principal'!E58 -> 2025-09-29 | F18: =+'Vista Principal'!F58 -> 32 | G18: =+'Vista Principal'!G58 -> 144 | H18: =+'Vista Principal'!H58 -> 71582.65929 | I18: =+'Vista Principal'!I58 -> 561.2521328 | J18: =+'Vista Principal'!J58 -> 1381.902436 | K18: =+'Vista Principal'!K58 -> 638.04 | L18: =+'Vista Principal'!L58 -> 0 | M18: =+'Vista Principal'!M58 -> 2581.194569 | N18: =+'Vista Principal'!N58 -> 71021.40716
B19: =+'Vista Principal'!B59 -> 12 | C19: =+'Vista Principal'!C59 -> 2025-10-28 | D19: =+'Vista Principal'!D59 -> 2 | E19: =+'Vista Principal'!E59 -> 2025-10-28 | F19: =+'Vista Principal'!F59 -> 29 | G19: =+'Vista Principal'!G59 -> 173 | H19: =+'Vista Principal'!H59 -> 71021.40716 | I19: =+'Vista Principal'!I59 -> 701.7412314 | J19: =+'Vista Principal'!J59 -> 1241.413338 | K19: =+'Vista Principal'!K59 -> 638.04 | L19: =+'Vista Principal'!L59 -> 0 | M19: =+'Vista Principal'!M59 -> 2581.194569 | N19: =+'Vista Principal'!N59 -> 70319.66593
B20: =+'Vista Principal'!B60 -> 13 | C20: =+'Vista Principal'!C60 -> 2025-11-28 | D20: =+'Vista Principal'!D60 -> 5 | E20: =+'Vista Principal'!E60 -> 2025-11-28 | F20: =+'Vista Principal'!F60 -> 31 | G20: =+'Vista Principal'!G60 -> 204 | H20: =+'Vista Principal'!H60 -> 70319.66593 | I20: =+'Vista Principal'!I60 -> 628.4507967 | J20: =+'Vista Principal'!J60 -> 1314.703772 | K20: =+'Vista Principal'!K60 -> 638.04 | L20: =+'Vista Principal'!L60 -> 0 | M20: =+'Vista Principal'!M60 -> 2581.194569 | N20: =+'Vista Principal'!N60 -> 69691.21513
B21: =+'Vista Principal'!B61 -> 14 | C21: =+'Vista Principal'!C61 -> 2025-12-28 | D21: =+'Vista Principal'!D61 -> 7 | E21: =+'Vista Principal'!E61 -> 2025-12-29 | F21: =+'Vista Principal'!F61 -> 31 | G21: =+'Vista Principal'!G61 -> 235 | H21: =+'Vista Principal'!H61 -> 69691.21513 | I21: =+'Vista Principal'!I61 -> 640.200378 | J21: =+'Vista Principal'!J61 -> 1302.954191 | K21: =+'Vista Principal'!K61 -> 638.04 | L21: =+'Vista Principal'!L61 -> 0 | M21: =+'Vista Principal'!M61 -> 2581.194569 | N21: =+'Vista Principal'!N61 -> 69051.01475
B22: =+'Vista Principal'!B62 -> 15 | C22: =+'Vista Principal'!C62 -> 2026-01-28 | D22: =+'Vista Principal'!D62 -> 3 | E22: =+'Vista Principal'!E62 -> 2026-01-28 | F22: =+'Vista Principal'!F62 -> 30 | G22: =+'Vista Principal'!G62 -> 265 | H22: =+'Vista Principal'!H62 -> 69051.01475 | I22: =+'Vista Principal'!I62 -> 694.188644 | J22: =+'Vista Principal'!J62 -> 1248.965925 | K22: =+'Vista Principal'!K62 -> 638.04 | L22: =+'Vista Principal'!L62 -> 0 | M22: =+'Vista Principal'!M62 -> 2581.194569 | N22: =+'Vista Principal'!N62 -> 68356.82611
B23: =+'Vista Principal'!B63 -> 16 | C23: =+'Vista Principal'!C63 -> 2026-02-28 | D23: =+'Vista Principal'!D63 -> 6 | E23: =+'Vista Principal'!E63 -> 2026-02-28 | F23: =+'Vista Principal'!F63 -> 31 | G23: =+'Vista Principal'!G63 -> 296 | H23: =+'Vista Principal'!H63 -> 68356.82611 | I23: =+'Vista Principal'!I63 -> 665.1482537 | J23: =+'Vista Principal'!J63 -> 1278.006315 | K23: =+'Vista Principal'!K63 -> 638.04 | L23: =+'Vista Principal'!L63 -> 0 | M23: =+'Vista Principal'!M63 -> 2581.194569 | N23: =+'Vista Principal'!N63 -> 67691.67786
B24: =+'Vista Principal'!B64 -> 17 | C24: =+'Vista Principal'!C64 -> 2026-03-28 | D24: =+'Vista Principal'!D64 -> 6 | E24: =+'Vista Principal'!E64 -> 2026-03-28 | F24: =+'Vista Principal'!F64 -> 28 | G24: =+'Vista Principal'!G64 -> 324 | H24: =+'Vista Principal'!H64 -> 67691.67786 | I24: =+'Vista Principal'!I64 -> 801.0856143 | J24: =+'Vista Principal'!J64 -> 1142.068955 | K24: =+'Vista Principal'!K64 -> 638.04 | L24: =+'Vista Principal'!L64 -> 0 | M24: =+'Vista Principal'!M64 -> 2581.194569 | N24: =+'Vista Principal'!N64 -> 66890.59224
B25: =+'Vista Principal'!B65 -> 18 | C25: =+'Vista Principal'!C65 -> 2026-04-28 | D25: =+'Vista Principal'!D65 -> 2 | E25: =+'Vista Principal'!E65 -> 2026-04-28 | F25: =+'Vista Principal'!F65 -> 31 | G25: =+'Vista Principal'!G65 -> 355 | H25: =+'Vista Principal'!H65 -> 66890.59224 | I25: =+'Vista Principal'!I65 -> 692.5611142 | J25: =+'Vista Principal'!J65 -> 1250.593455 | K25: =+'Vista Principal'!K65 -> 638.04 | L25: =+'Vista Principal'!L65 -> 0 | M25: =+'Vista Principal'!M65 -> 2581.194569 | N25: =+'Vista Principal'!N65 -> 66198.03113
B26: =+'Vista Principal'!B66 -> 19 | C26: =+'Vista Principal'!C66 -> 2026-05-28 | D26: =+'Vista Principal'!D66 -> 4 | E26: =+'Vista Principal'!E66 -> 2026-05-28 | F26: =+'Vista Principal'!F66 -> 30 | G26: =+'Vista Principal'!G66 -> 385 | H26: =+'Vista Principal'!H66 -> 66198.03113 | I26: =+'Vista Principal'!I66 -> 745.7922206 | J26: =+'Vista Principal'!J66 -> 1197.362348 | K26: =+'Vista Principal'!K66 -> 638.04 | L26: =+'Vista Principal'!L66 -> 0 | M26: =+'Vista Principal'!M66 -> 2581.194569 | N26: =+'Vista Principal'!N66 -> 65452.23891
B27: =+'Vista Principal'!B67 -> 20 | C27: =+'Vista Principal'!C67 -> 2026-06-28 | D27: =+'Vista Principal'!D67 -> 7 | E27: =+'Vista Principal'!E67 -> 2026-06-29 | F27: =+'Vista Principal'!F67 -> 32 | G27: =+'Vista Principal'!G67 -> 417 | H27: =+'Vista Principal'!H67 -> 65452.23891 | I27: =+'Vista Principal'!I67 -> 679.5998297 | J27: =+'Vista Principal'!J67 -> 1263.554739 | K27: =+'Vista Principal'!K67 -> 638.04 | L27: =+'Vista Principal'!L67 -> 0 | M27: =+'Vista Principal'!M67 -> 2581.194569 | N27: =+'Vista Principal'!N67 -> 64772.63908
B28: =+'Vista Principal'!B68 -> 21 | C28: =+'Vista Principal'!C68 -> 2026-07-28 | D28: =+'Vista Principal'!D68 -> 2 | E28: =+'Vista Principal'!E68 -> 2026-07-28 | F28: =+'Vista Principal'!F68 -> 29 | G28: =+'Vista Principal'!G68 -> 446 | H28: =+'Vista Principal'!H68 -> 64772.63908 | I28: =+'Vista Principal'!I68 -> 810.9661024 | J28: =+'Vista Principal'!J68 -> 1132.188466 | K28: =+'Vista Principal'!K68 -> 638.04 | L28: =+'Vista Principal'!L68 -> 0 | M28: =+'Vista Principal'!M68 -> 2581.194569 | N28: =+'Vista Principal'!N68 -> 63961.67298
B29: =+'Vista Principal'!B69 -> 22 | C29: =+'Vista Principal'!C69 -> 2026-08-28 | D29: =+'Vista Principal'!D69 -> 5 | E29: =+'Vista Principal'!E69 -> 2026-08-28 | F29: =+'Vista Principal'!F69 -> 31 | G29: =+'Vista Principal'!G69 -> 477 | H29: =+'Vista Principal'!H69 -> 63961.67298 | I29: =+'Vista Principal'!I69 -> 747.3204928 | J29: =+'Vista Principal'!J69 -> 1195.834076 | K29: =+'Vista Principal'!K69 -> 638.04 | L29: =+'Vista Principal'!L69 -> 0 | M29: =+'Vista Principal'!M69 -> 2581.194569 | N29: =+'Vista Principal'!N69 -> 63214.35248
B30: =+'Vista Principal'!B70 -> 23 | C30: =+'Vista Principal'!C70 -> 2026-09-28 | D30: =+'Vista Principal'!D70 -> 1 | E30: =+'Vista Principal'!E70 -> 2026-09-28 | F30: =+'Vista Principal'!F70 -> 31 | G30: =+'Vista Principal'!G70 -> 508 | H30: =+'Vista Principal'!H70 -> 63214.35248 | I30: =+'Vista Principal'!I70 -> 761.2924743 | J30: =+'Vista Principal'!J70 -> 1181.862095 | K30: =+'Vista Principal'!K70 -> 638.04 | L30: =+'Vista Principal'!L70 -> 0 | M30: =+'Vista Principal'!M70 -> 2581.194569 | N30: =+'Vista Principal'!N70 -> 62453.06001
B31: =+'Vista Principal'!B71 -> 24 | C31: =+'Vista Principal'!C71 -> 2026-10-28 | D31: =+'Vista Principal'!D71 -> 3 | E31: =+'Vista Principal'!E71 -> 2026-10-28 | F31: =+'Vista Principal'!F71 -> 30 | G31: =+'Vista Principal'!G71 -> 538 | H31: =+'Vista Principal'!H71 -> 62453.06001 | I31: =+'Vista Principal'!I71 -> 813.5296947 | J31: =+'Vista Principal'!J71 -> 1129.624874 | K31: =+'Vista Principal'!K71 -> 638.04 | L31: =+'Vista Principal'!L71 -> 0 | M31: =+'Vista Principal'!M71 -> 2581.194569 | N31: =+'Vista Principal'!N71 -> 61639.53031
B32: =+'Vista Principal'!B72 -> 25 | C32: =+'Vista Principal'!C72 -> 2026-11-28 | D32: =+'Vista Principal'!D72 -> 6 | E32: =+'Vista Principal'!E72 -> 2026-11-28 | F32: =+'Vista Principal'!F72 -> 31 | G32: =+'Vista Principal'!G72 -> 569 | H32: =+'Vista Principal'!H72 -> 61639.53031 | I32: =+'Vista Principal'!I72 -> 790.735513 | J32: =+'Vista Principal'!J72 -> 1152.419056 | K32: =+'Vista Principal'!K72 -> 638.04 | L32: =+'Vista Principal'!L72 -> 0 | M32: =+'Vista Principal'!M72 -> 2581.194569 | N32: =+'Vista Principal'!N72 -> 60848.7948
B33: =+'Vista Principal'!B73 -> 26 | C33: =+'Vista Principal'!C73 -> 2026-12-28 | D33: =+'Vista Principal'!D73 -> 1 | E33: =+'Vista Principal'!E73 -> 2026-12-28 | F33: =+'Vista Principal'!F73 -> 30 | G33: =+'Vista Principal'!G73 -> 599 | H33: =+'Vista Principal'!H73 -> 60848.7948 | I33: =+'Vista Principal'!I73 -> 842.5469739 | J33: =+'Vista Principal'!J73 -> 1100.607595 | K33: =+'Vista Principal'!K73 -> 638.04 | L33: =+'Vista Principal'!L73 -> 0 | M33: =+'Vista Principal'!M73 -> 2581.194569 | N33: =+'Vista Principal'!N73 -> 60006.24783
B34: =+'Vista Principal'!B74 -> 27 | C34: =+'Vista Principal'!C74 -> 2027-01-28 | D34: =+'Vista Principal'!D74 -> 4 | E34: =+'Vista Principal'!E74 -> 2027-01-28 | F34: =+'Vista Principal'!F74 -> 31 | G34: =+'Vista Principal'!G74 -> 630 | H34: =+'Vista Principal'!H74 -> 60006.24783 | I34: =+'Vista Principal'!I74 -> 821.2715319 | J34: =+'Vista Principal'!J74 -> 1121.883037 | K34: =+'Vista Principal'!K74 -> 638.04 | L34: =+'Vista Principal'!L74 -> 0 | M34: =+'Vista Principal'!M74 -> 2581.194569 | N34: =+'Vista Principal'!N74 -> 59184.9763
B35: =+'Vista Principal'!B75 -> 28 | C35: =+'Vista Principal'!C75 -> 2027-02-28 | D35: =+'Vista Principal'!D75 -> 7 | E35: =+'Vista Principal'!E75 -> 2027-03-01 | F35: =+'Vista Principal'!F75 -> 32 | G35: =+'Vista Principal'!G75 -> 662 | H35: =+'Vista Principal'!H75 -> 59184.9763 | I35: =+'Vista Principal'!I75 -> 800.5892643 | J35: =+'Vista Principal'!J75 -> 1142.565305 | K35: =+'Vista Principal'!K75 -> 638.04 | L35: =+'Vista Principal'!L75 -> 0 | M35: =+'Vista Principal'!M75 -> 2581.194569 | N35: =+'Vista Principal'!N75 -> 58384.38703
B36: =+'Vista Principal'!B76 -> 29 | C36: =+'Vista Principal'!C76 -> 2027-03-28 | D36: =+'Vista Principal'!D76 -> 7 | E36: =+'Vista Principal'!E76 -> 2027-03-29 | F36: =+'Vista Principal'!F76 -> 28 | G36: =+'Vista Principal'!G76 -> 690 | H36: =+'Vista Principal'!H76 -> 58384.38703 | I36: =+'Vista Principal'!I76 -> 958.114783 | J36: =+'Vista Principal'!J76 -> 985.0397859 | K36: =+'Vista Principal'!K76 -> 638.04 | L36: =+'Vista Principal'!L76 -> 0 | M36: =+'Vista Principal'!M76 -> 2581.194569 | N36: =+'Vista Principal'!N76 -> 57426.27225
B37: =+'Vista Principal'!B77 -> 30 | C37: =+'Vista Principal'!C77 -> 2027-04-28 | D37: =+'Vista Principal'!D77 -> 3 | E37: =+'Vista Principal'!E77 -> 2027-04-28 | F37: =+'Vista Principal'!F77 -> 30 | G37: =+'Vista Principal'!G77 -> 720 | H37: =+'Vista Principal'!H77 -> 57426.27225 | I37: =+'Vista Principal'!I77 -> 904.4521329 | J37: =+'Vista Principal'!J77 -> 1038.702436 | K37: =+'Vista Principal'!K77 -> 638.04 | L37: =+'Vista Principal'!L77 -> 0 | M37: =+'Vista Principal'!M77 -> 2581.194569 | N37: =+'Vista Principal'!N77 -> 56521.82011
B38: =+'Vista Principal'!B78 -> 31 | C38: =+'Vista Principal'!C78 -> 2027-05-28 | D38: =+'Vista Principal'!D78 -> 5 | E38: =+'Vista Principal'!E78 -> 2027-05-28 | F38: =+'Vista Principal'!F78 -> 30 | G38: =+'Vista Principal'!G78 -> 750 | H38: =+'Vista Principal'!H78 -> 56521.82011 | I38: =+'Vista Principal'!I78 -> 920.8114855 | J38: =+'Vista Principal'!J78 -> 1022.343083 | K38: =+'Vista Principal'!K78 -> 638.04 | L38: =+'Vista Principal'!L78 -> 0 | M38: =+'Vista Principal'!M78 -> 2581.194569 | N38: =+'Vista Principal'!N78 -> 55601.00863
B39: =+'Vista Principal'!B79 -> 32 | C39: =+'Vista Principal'!C79 -> 2027-06-28 | D39: =+'Vista Principal'!D79 -> 1 | E39: =+'Vista Principal'!E79 -> 2027-06-28 | F39: =+'Vista Principal'!F79 -> 31 | G39: =+'Vista Principal'!G79 -> 781 | H39: =+'Vista Principal'!H79 -> 55601.00863 | I39: =+'Vista Principal'!I79 -> 903.6323412 | J39: =+'Vista Principal'!J79 -> 1039.522228 | K39: =+'Vista Principal'!K79 -> 638.04 | L39: =+'Vista Principal'!L79 -> 0 | M39: =+'Vista Principal'!M79 -> 2581.194569 | N39: =+'Vista Principal'!N79 -> 54697.37629
B40: =+'Vista Principal'!B80 -> 33 | C40: =+'Vista Principal'!C80 -> 2027-07-28 | D40: =+'Vista Principal'!D80 -> 3 | E40: =+'Vista Principal'!E80 -> 2027-07-28 | F40: =+'Vista Principal'!F80 -> 30 | G40: =+'Vista Principal'!G80 -> 811 | H40: =+'Vista Principal'!H80 -> 54697.37629 | I40: =+'Vista Principal'!I80 -> 953.8112637 | J40: =+'Vista Principal'!J80 -> 989.3433052 | K40: =+'Vista Principal'!K80 -> 638.04 | L40: =+'Vista Principal'!L80 -> 0 | M40: =+'Vista Principal'!M80 -> 2581.194569 | N40: =+'Vista Principal'!N80 -> 53743.56502
B41: =+'Vista Principal'!B81 -> 34 | C41: =+'Vista Principal'!C81 -> 2027-08-28 | D41: =+'Vista Principal'!D81 -> 6 | E41: =+'Vista Principal'!E81 -> 2027-08-28 | F41: =+'Vista Principal'!F81 -> 31 | G41: =+'Vista Principal'!G81 -> 842 | H41: =+'Vista Principal'!H81 -> 53743.56502 | I41: =+'Vista Principal'!I81 -> 938.3592996 | J41: =+'Vista Principal'!J81 -> 1004.795269 | K41: =+'Vista Principal'!K81 -> 638.04 | L41: =+'Vista Principal'!L81 -> 0 | M41: =+'Vista Principal'!M81 -> 2581.194569 | N41: =+'Vista Principal'!N81 -> 52805.20572
B42: =+'Vista Principal'!B82 -> 35 | C42: =+'Vista Principal'!C82 -> 2027-09-28 | D42: =+'Vista Principal'!D82 -> 2 | E42: =+'Vista Principal'!E82 -> 2027-09-28 | F42: =+'Vista Principal'!F82 -> 31 | G42: =+'Vista Principal'!G82 -> 873 | H42: =+'Vista Principal'!H82 -> 52805.20572 | I42: =+'Vista Principal'!I82 -> 955.9029624 | J42: =+'Vista Principal'!J82 -> 987.2516065 | K42: =+'Vista Principal'!K82 -> 638.04 | L42: =+'Vista Principal'!L82 -> 0 | M42: =+'Vista Principal'!M82 -> 2581.194569 | N42: =+'Vista Principal'!N82 -> 51849.30276
B43: =+'Vista Principal'!B83 -> 36 | C43: =+'Vista Principal'!C83 -> 2027-10-28 | D43: =+'Vista Principal'!D83 -> 4 | E43: =+'Vista Principal'!E83 -> 2027-10-28 | F43: =+'Vista Principal'!F83 -> 30 | G43: =+'Vista Principal'!G83 -> 903 | H43: =+'Vista Principal'!H83 -> 51849.30276 | I43: =+'Vista Principal'!I83 -> 1005.326029 | J43: =+'Vista Principal'!J83 -> 937.8285404 | K43: =+'Vista Principal'!K83 -> 638.04 | L43: =+'Vista Principal'!L83 -> 0 | M43: =+'Vista Principal'!M83 -> 2581.194569 | N43: =+'Vista Principal'!N83 -> 50843.97673
B44: =+'Vista Principal'!B84 -> 37 | C44: =+'Vista Principal'!C84 -> 2027-11-28 | D44: =+'Vista Principal'!D84 -> 7 | E44: =+'Vista Principal'!E84 -> 2027-11-29 | F44: =+'Vista Principal'!F84 -> 32 | G44: =+'Vista Principal'!G84 -> 935 | H44: =+'Vista Principal'!H84 -> 50843.97673 | I44: =+'Vista Principal'!I84 -> 961.6121674 | J44: =+'Vista Principal'!J84 -> 981.5424015 | K44: =+'Vista Principal'!K84 -> 638.04 | L44: =+'Vista Principal'!L84 -> 0 | M44: =+'Vista Principal'!M84 -> 2581.194569 | N44: =+'Vista Principal'!N84 -> 49882.36457
B45: =+'Vista Principal'!B85 -> 38 | C45: =+'Vista Principal'!C85 -> 2027-12-28 | D45: =+'Vista Principal'!D85 -> 2 | E45: =+'Vista Principal'!E85 -> 2027-12-28 | F45: =+'Vista Principal'!F85 -> 29 | G45: =+'Vista Principal'!G85 -> 964 | H45: =+'Vista Principal'!H85 -> 49882.36457 | I45: =+'Vista Principal'!I85 -> 1071.239534 | J45: =+'Vista Principal'!J85 -> 871.9150346 | K45: =+'Vista Principal'!K85 -> 638.04 | L45: =+'Vista Principal'!L85 -> 0 | M45: =+'Vista Principal'!M85 -> 2581.194569 | N45: =+'Vista Principal'!N85 -> 48811.12503
B46: =+'Vista Principal'!B86 -> 39 | C46: =+'Vista Principal'!C86 -> 2028-01-28 | D46: =+'Vista Principal'!D86 -> 5 | E46: =+'Vista Principal'!E86 -> 2028-01-28 | F46: =+'Vista Principal'!F86 -> 31 | G46: =+'Vista Principal'!G86 -> 995 | H46: =+'Vista Principal'!H86 -> 48811.12503 | I46: =+'Vista Principal'!I86 -> 1030.57671 | J46: =+'Vista Principal'!J86 -> 912.5778594 | K46: =+'Vista Principal'!K86 -> 638.04 | L46: =+'Vista Principal'!L86 -> 0 | M46: =+'Vista Principal'!M86 -> 2581.194569 | N46: =+'Vista Principal'!N86 -> 47780.54832
B47: =+'Vista Principal'!B87 -> 40 | C47: =+'Vista Principal'!C87 -> 2028-02-28 | D47: =+'Vista Principal'!D87 -> 1 | E47: =+'Vista Principal'!E87 -> 2028-02-28 | F47: =+'Vista Principal'!F87 -> 31 | G47: =+'Vista Principal'!G87 -> 1026 | H47: =+'Vista Principal'!H87 -> 47780.54832 | I47: =+'Vista Principal'!I87 -> 1049.844479 | J47: =+'Vista Principal'!J87 -> 893.3100903 | K47: =+'Vista Principal'!K87 -> 638.04 | L47: =+'Vista Principal'!L87 -> 0 | M47: =+'Vista Principal'!M87 -> 2581.194569 | N47: =+'Vista Principal'!N87 -> 46730.70384
B48: =+'Vista Principal'!B88 -> 41 | C48: =+'Vista Principal'!C88 -> 2028-03-28 | D48: =+'Vista Principal'!D88 -> 2 | E48: =+'Vista Principal'!E88 -> 2028-03-28 | F48: =+'Vista Principal'!F88 -> 29 | G48: =+'Vista Principal'!G88 -> 1055 | H48: =+'Vista Principal'!H88 -> 46730.70384 | I48: =+'Vista Principal'!I88 -> 1126.328751 | J48: =+'Vista Principal'!J88 -> 816.8258184 | K48: =+'Vista Principal'!K88 -> 638.04 | L48: =+'Vista Principal'!L88 -> 0 | M48: =+'Vista Principal'!M88 -> 2581.194569 | N48: =+'Vista Principal'!N88 -> 45604.37509
B49: =+'Vista Principal'!B89 -> 42 | C49: =+'Vista Principal'!C89 -> 2028-04-28 | D49: =+'Vista Principal'!D89 -> 5 | E49: =+'Vista Principal'!E89 -> 2028-04-28 | F49: =+'Vista Principal'!F89 -> 31 | G49: =+'Vista Principal'!G89 -> 1086 | H49: =+'Vista Principal'!H89 -> 45604.37509 | I49: =+'Vista Principal'!I89 -> 1090.530439 | J49: =+'Vista Principal'!J89 -> 852.6241297 | K49: =+'Vista Principal'!K89 -> 638.04 | L49: =+'Vista Principal'!L89 -> 0 | M49: =+'Vista Principal'!M89 -> 2581.194569 | N49: =+'Vista Principal'!N89 -> 44513.84465
B50: =+'Vista Principal'!B90 -> 43 | C50: =+'Vista Principal'!C90 -> 2028-05-28 | D50: =+'Vista Principal'!D90 -> 7 | E50: =+'Vista Principal'!E90 -> 2028-05-29 | F50: =+'Vista Principal'!F90 -> 31 | G50: =+'Vista Principal'!G90 -> 1117 | H50: =+'Vista Principal'!H90 -> 44513.84465 | I50: =+'Vista Principal'!I90 -> 1110.919109 | J50: =+'Vista Principal'!J90 -> 832.2354594 | K50: =+'Vista Principal'!K90 -> 638.04 | L50: =+'Vista Principal'!L90 -> 0 | M50: =+'Vista Principal'!M90 -> 2581.194569 | N50: =+'Vista Principal'!N90 -> 43402.92554
B51: =+'Vista Principal'!B91 -> 44 | C51: =+'Vista Principal'!C91 -> 2028-06-28 | D51: =+'Vista Principal'!D91 -> 3 | E51: =+'Vista Principal'!E91 -> 2028-06-28 | F51: =+'Vista Principal'!F91 -> 30 | G51: =+'Vista Principal'!G91 -> 1147 | H51: =+'Vista Principal'!H91 -> 43402.92554 | I51: =+'Vista Principal'!I91 -> 1158.100573 | J51: =+'Vista Principal'!J91 -> 785.0539958 | K51: =+'Vista Principal'!K91 -> 638.04 | L51: =+'Vista Principal'!L91 -> 0 | M51: =+'Vista Principal'!M91 -> 2581.194569 | N51: =+'Vista Principal'!N91 -> 42244.82497
B52: =+'Vista Principal'!B92 -> 45 | C52: =+'Vista Principal'!C92 -> 2028-07-28 | D52: =+'Vista Principal'!D92 -> 5 | E52: =+'Vista Principal'!E92 -> 2028-07-28 | F52: =+'Vista Principal'!F92 -> 30 | G52: =+'Vista Principal'!G92 -> 1177 | H52: =+'Vista Principal'!H92 -> 42244.82497 | I52: =+'Vista Principal'!I92 -> 1179.047813 | J52: =+'Vista Principal'!J92 -> 764.1067562 | K52: =+'Vista Principal'!K92 -> 638.04 | L52: =+'Vista Principal'!L92 -> 0 | M52: =+'Vista Principal'!M92 -> 2581.194569 | N52: =+'Vista Principal'!N92 -> 41065.77716
B53: =+'Vista Principal'!B93 -> 46 | C53: =+'Vista Principal'!C93 -> 2028-08-28 | D53: =+'Vista Principal'!D93 -> 1 | E53: =+'Vista Principal'!E93 -> 2028-08-28 | F53: =+'Vista Principal'!F93 -> 31 | G53: =+'Vista Principal'!G93 -> 1208 | H53: =+'Vista Principal'!H93 -> 41065.77716 | I53: =+'Vista Principal'!I93 -> 1175.384537 | J53: =+'Vista Principal'!J93 -> 767.7700317 | K53: =+'Vista Principal'!K93 -> 638.04 | L53: =+'Vista Principal'!L93 -> 0 | M53: =+'Vista Principal'!M93 -> 2581.194569 | N53: =+'Vista Principal'!N93 -> 39890.39262
B54: =+'Vista Principal'!B94 -> 47 | C54: =+'Vista Principal'!C94 -> 2028-09-28 | D54: =+'Vista Principal'!D94 -> 4 | E54: =+'Vista Principal'!E94 -> 2028-09-28 | F54: =+'Vista Principal'!F94 -> 31 | G54: =+'Vista Principal'!G94 -> 1239 | H54: =+'Vista Principal'!H94 -> 39890.39262 | I54: =+'Vista Principal'!I94 -> 1197.359649 | J54: =+'Vista Principal'!J94 -> 745.7949204 | K54: =+'Vista Principal'!K94 -> 638.04 | L54: =+'Vista Principal'!L94 -> 0 | M54: =+'Vista Principal'!M94 -> 2581.194569 | N54: =+'Vista Principal'!N94 -> 38693.03297
B55: =+'Vista Principal'!B95 -> 48 | C55: =+'Vista Principal'!C95 -> 2028-10-28 | D55: =+'Vista Principal'!D95 -> 6 | E55: =+'Vista Principal'!E95 -> 2028-10-28 | F55: =+'Vista Principal'!F95 -> 30 | G55: =+'Vista Principal'!G95 -> 1269 | H55: =+'Vista Principal'!H95 -> 38693.03297 | I55: =+'Vista Principal'!I95 -> 1243.291143 | J55: =+'Vista Principal'!J95 -> 699.8634254 | K55: =+'Vista Principal'!K95 -> 638.04 | L55: =+'Vista Principal'!L95 -> 0 | M55: =+'Vista Principal'!M95 -> 2581.194569 | N55: =+'Vista Principal'!N95 -> 37449.74183
B56: =+'Vista Principal'!B96 -> 49 | C56: =+'Vista Principal'!C96 -> 2028-11-28 | D56: =+'Vista Principal'!D96 -> 2 | E56: =+'Vista Principal'!E96 -> 2028-11-28 | F56: =+'Vista Principal'!F96 -> 31 | G56: =+'Vista Principal'!G96 -> 1300 | H56: =+'Vista Principal'!H96 -> 37449.74183 | I56: =+'Vista Principal'!I96 -> 1242.990309 | J56: =+'Vista Principal'!J96 -> 700.1642599 | K56: =+'Vista Principal'!K96 -> 638.04 | L56: =+'Vista Principal'!L96 -> 0 | M56: =+'Vista Principal'!M96 -> 2581.194569 | N56: =+'Vista Principal'!N96 -> 36206.75152
B57: =+'Vista Principal'!B97 -> 50 | C57: =+'Vista Principal'!C97 -> 2028-12-28 | D57: =+'Vista Principal'!D97 -> 4 | E57: =+'Vista Principal'!E97 -> 2028-12-28 | F57: =+'Vista Principal'!F97 -> 30 | G57: =+'Vista Principal'!G97 -> 1330 | H57: =+'Vista Principal'!H97 -> 36206.75152 | I57: =+'Vista Principal'!I97 -> 1288.261964 | J57: =+'Vista Principal'!J97 -> 654.8926046 | K57: =+'Vista Principal'!K97 -> 638.04 | L57: =+'Vista Principal'!L97 -> 0 | M57: =+'Vista Principal'!M97 -> 2581.194569 | N57: =+'Vista Principal'!N97 -> 34918.48956
B58: =+'Vista Principal'!B98 -> 51 | C58: =+'Vista Principal'!C98 -> 2029-01-28 | D58: =+'Vista Principal'!D98 -> 7 | E58: =+'Vista Principal'!E98 -> 2029-01-29 | F58: =+'Vista Principal'!F98 -> 32 | G58: =+'Vista Principal'!G98 -> 1362 | H58: =+'Vista Principal'!H98 -> 34918.48956 | I58: =+'Vista Principal'!I98 -> 1269.053519 | J58: =+'Vista Principal'!J98 -> 674.1010499 | K58: =+'Vista Principal'!K98 -> 638.04 | L58: =+'Vista Principal'!L98 -> 0 | M58: =+'Vista Principal'!M98 -> 2581.194569 | N58: =+'Vista Principal'!N98 -> 33649.43604
B59: =+'Vista Principal'!B99 -> 52 | C59: =+'Vista Principal'!C99 -> 2029-02-28 | D59: =+'Vista Principal'!D99 -> 3 | E59: =+'Vista Principal'!E99 -> 2029-02-28 | F59: =+'Vista Principal'!F99 -> 30 | G59: =+'Vista Principal'!G99 -> 1392 | H59: =+'Vista Principal'!H99 -> 33649.43604 | I59: =+'Vista Principal'!I99 -> 1334.517619 | J59: =+'Vista Principal'!J99 -> 608.6369498 | K59: =+'Vista Principal'!K99 -> 638.04 | L59: =+'Vista Principal'!L99 -> 0 | M59: =+'Vista Principal'!M99 -> 2581.194569 | N59: =+'Vista Principal'!N99 -> 32314.91842
B60: =+'Vista Principal'!B100 -> 53 | C60: =+'Vista Principal'!C100 -> 2029-03-28 | D60: =+'Vista Principal'!D100 -> 3 | E60: =+'Vista Principal'!E100 -> 2029-03-28 | F60: =+'Vista Principal'!F100 -> 28 | G60: =+'Vista Principal'!G100 -> 1420 | H60: =+'Vista Principal'!H100 -> 32314.91842 | I60: =+'Vista Principal'!I100 -> 1397.949216 | J60: =+'Vista Principal'!J100 -> 545.2053526 | K60: =+'Vista Principal'!K100 -> 638.04 | L60: =+'Vista Principal'!L100 -> 0 | M60: =+'Vista Principal'!M100 -> 2581.194569 | N60: =+'Vista Principal'!N100 -> 30916.9692
B61: =+'Vista Principal'!B101 -> 54 | C61: =+'Vista Principal'!C101 -> 2029-04-28 | D61: =+'Vista Principal'!D101 -> 6 | E61: =+'Vista Principal'!E101 -> 2029-04-28 | F61: =+'Vista Principal'!F101 -> 31 | G61: =+'Vista Principal'!G101 -> 1451 | H61: =+'Vista Principal'!H101 -> 30916.9692 | I61: =+'Vista Principal'!I101 -> 1365.127704 | J61: =+'Vista Principal'!J101 -> 578.0268649 | K61: =+'Vista Principal'!K101 -> 638.04 | L61: =+'Vista Principal'!L101 -> 0 | M61: =+'Vista Principal'!M101 -> 2581.194569 | N61: =+'Vista Principal'!N101 -> 29551.8415
B62: =+'Vista Principal'!B102 -> 55 | C62: =+'Vista Principal'!C102 -> 2029-05-28 | D62: =+'Vista Principal'!D102 -> 1 | E62: =+'Vista Principal'!E102 -> 2029-05-28 | F62: =+'Vista Principal'!F102 -> 30 | G62: =+'Vista Principal'!G102 -> 1481 | H62: =+'Vista Principal'!H102 -> 29551.8415 | I62: =+'Vista Principal'!I102 -> 1408.633198 | J62: =+'Vista Principal'!J102 -> 534.5213706 | K62: =+'Vista Principal'!K102 -> 638.04 | L62: =+'Vista Principal'!L102 -> 0 | M62: =+'Vista Principal'!M102 -> 2581.194569 | N62: =+'Vista Principal'!N102 -> 28143.2083
B63: =+'Vista Principal'!B103 -> 56 | C63: =+'Vista Principal'!C103 -> 2029-06-28 | D63: =+'Vista Principal'!D103 -> 4 | E63: =+'Vista Principal'!E103 -> 2029-06-28 | F63: =+'Vista Principal'!F103 -> 31 | G63: =+'Vista Principal'!G103 -> 1512 | H63: =+'Vista Principal'!H103 -> 28143.2083 | I63: =+'Vista Principal'!I103 -> 1416.986226 | J63: =+'Vista Principal'!J103 -> 526.1683432 | K63: =+'Vista Principal'!K103 -> 638.04 | L63: =+'Vista Principal'!L103 -> 0 | M63: =+'Vista Principal'!M103 -> 2581.194569 | N63: =+'Vista Principal'!N103 -> 26726.22207
B64: =+'Vista Principal'!B104 -> 57 | C64: =+'Vista Principal'!C104 -> 2029-07-28 | D64: =+'Vista Principal'!D104 -> 6 | E64: =+'Vista Principal'!E104 -> 2029-07-28 | F64: =+'Vista Principal'!F104 -> 30 | G64: =+'Vista Principal'!G104 -> 1542 | H64: =+'Vista Principal'!H104 -> 26726.22207 | I64: =+'Vista Principal'!I104 -> 1459.741823 | J64: =+'Vista Principal'!J104 -> 483.4127462 | K64: =+'Vista Principal'!K104 -> 638.04 | L64: =+'Vista Principal'!L104 -> 0 | M64: =+'Vista Principal'!M104 -> 2581.194569 | N64: =+'Vista Principal'!N104 -> 25266.48025
B65: =+'Vista Principal'!B105 -> 58 | C65: =+'Vista Principal'!C105 -> 2029-08-28 | D65: =+'Vista Principal'!D105 -> 2 | E65: =+'Vista Principal'!E105 -> 2029-08-28 | F65: =+'Vista Principal'!F105 -> 31 | G65: =+'Vista Principal'!G105 -> 1573 | H65: =+'Vista Principal'!H105 -> 25266.48025 | I65: =+'Vista Principal'!I105 -> 1470.769832 | J65: =+'Vista Principal'!J105 -> 472.384737 | K65: =+'Vista Principal'!K105 -> 638.04 | L65: =+'Vista Principal'!L105 -> 0 | M65: =+'Vista Principal'!M105 -> 2581.194569 | N65: =+'Vista Principal'!N105 -> 23795.71042
B66: =+'Vista Principal'!B106 -> 59 | C66: =+'Vista Principal'!C106 -> 2029-09-28 | D66: =+'Vista Principal'!D106 -> 5 | E66: =+'Vista Principal'!E106 -> 2029-09-28 | F66: =+'Vista Principal'!F106 -> 31 | G66: =+'Vista Principal'!G106 -> 1604 | H66: =+'Vista Principal'!H106 -> 23795.71042 | I66: =+'Vista Principal'!I106 -> 1498.267497 | J66: =+'Vista Principal'!J106 -> 444.8870716 | K66: =+'Vista Principal'!K106 -> 638.04 | L66: =+'Vista Principal'!L106 -> 0 | M66: =+'Vista Principal'!M106 -> 2581.194569 | N66: =+'Vista Principal'!N106 -> 22297.44292
B67: =+'Vista Principal'!B107 -> 60 | C67: =+'Vista Principal'!C107 -> 2029-10-28 | D67: =+'Vista Principal'!D107 -> 7 | E67: =+'Vista Principal'!E107 -> 2029-10-29 | F67: =+'Vista Principal'!F107 -> 31 | G67: =+'Vista Principal'!G107 -> 1635 | H67: =+'Vista Principal'!H107 -> 22297.44292 | I67: =+'Vista Principal'!I107 -> 1526.279262 | J67: =+'Vista Principal'!J107 -> 416.875307 | K67: =+'Vista Principal'!K107 -> 638.04 | L67: =+'Vista Principal'!L107 -> 0 | M67: =+'Vista Principal'!M107 -> 2581.194569 | N67: =+'Vista Principal'!N107 -> 20771.16366
B68: =+'Vista Principal'!B108 -> 61 | C68: =+'Vista Principal'!C108 -> 2029-11-28 | D68: =+'Vista Principal'!D108 -> 3 | E68: =+'Vista Principal'!E108 -> 2029-11-28 | F68: =+'Vista Principal'!F108 -> 30 | G68: =+'Vista Principal'!G108 -> 1665 | H68: =+'Vista Principal'!H108 -> 20771.16366 | I68: =+'Vista Principal'!I108 -> 1567.454433 | J68: =+'Vista Principal'!J108 -> 375.700136 | K68: =+'Vista Principal'!K108 -> 638.04 | L68: =+'Vista Principal'!L108 -> 0 | M68: =+'Vista Principal'!M108 -> 2581.194569 | N68: =+'Vista Principal'!N108 -> 19203.70923
B69: =+'Vista Principal'!B109 -> 62 | C69: =+'Vista Principal'!C109 -> 2029-12-28 | D69: =+'Vista Principal'!D109 -> 5 | E69: =+'Vista Principal'!E109 -> 2029-12-28 | F69: =+'Vista Principal'!F109 -> 30 | G69: =+'Vista Principal'!G109 -> 1695 | H69: =+'Vista Principal'!H109 -> 19203.70923 | I69: =+'Vista Principal'!I109 -> 1595.805894 | J69: =+'Vista Principal'!J109 -> 347.3486746 | K69: =+'Vista Principal'!K109 -> 638.04 | L69: =+'Vista Principal'!L109 -> 0 | M69: =+'Vista Principal'!M109 -> 2581.194569 | N69: =+'Vista Principal'!N109 -> 17607.90333
B70: =+'Vista Principal'!B110 -> 63 | C70: =+'Vista Principal'!C110 -> 2030-01-28 | D70: =+'Vista Principal'!D110 -> 1 | E70: =+'Vista Principal'!E110 -> 2030-01-28 | F70: =+'Vista Principal'!F110 -> 31 | G70: =+'Vista Principal'!G110 -> 1726 | H70: =+'Vista Principal'!H110 -> 17607.90333 | I70: =+'Vista Principal'!I110 -> 1613.955381 | J70: =+'Vista Principal'!J110 -> 329.1991881 | K70: =+'Vista Principal'!K110 -> 638.04 | L70: =+'Vista Principal'!L110 -> 0 | M70: =+'Vista Principal'!M110 -> 2581.194569 | N70: =+'Vista Principal'!N110 -> 15993.94795
B71: =+'Vista Principal'!B111 -> 64 | C71: =+'Vista Principal'!C111 -> 2030-02-28 | D71: =+'Vista Principal'!D111 -> 4 | E71: =+'Vista Principal'!E111 -> 2030-02-28 | F71: =+'Vista Principal'!F111 -> 31 | G71: =+'Vista Principal'!G111 -> 1757 | H71: =+'Vista Principal'!H111 -> 15993.94795 | I71: =+'Vista Principal'!I111 -> 1644.130058 | J71: =+'Vista Principal'!J111 -> 299.0245108 | K71: =+'Vista Principal'!K111 -> 638.04 | L71: =+'Vista Principal'!L111 -> 0 | M71: =+'Vista Principal'!M111 -> 2581.194569 | N71: =+'Vista Principal'!N111 -> 14349.81789
B72: =+'Vista Principal'!B112 -> 65 | C72: =+'Vista Principal'!C112 -> 2030-03-28 | D72: =+'Vista Principal'!D112 -> 4 | E72: =+'Vista Principal'!E112 -> 2030-03-28 | F72: =+'Vista Principal'!F112 -> 28 | G72: =+'Vista Principal'!G112 -> 1785 | H72: =+'Vista Principal'!H112 -> 14349.81789 | I72: =+'Vista Principal'!I112 -> 1701.049748 | J72: =+'Vista Principal'!J112 -> 242.1048206 | K72: =+'Vista Principal'!K112 -> 638.04 | L72: =+'Vista Principal'!L112 -> 0 | M72: =+'Vista Principal'!M112 -> 2581.194569 | N72: =+'Vista Principal'!N112 -> 12648.76814
B73: =+'Vista Principal'!B113 -> 66 | C73: =+'Vista Principal'!C113 -> 2030-04-28 | D73: =+'Vista Principal'!D113 -> 7 | E73: =+'Vista Principal'!E113 -> 2030-04-29 | F73: =+'Vista Principal'!F113 -> 32 | G73: =+'Vista Principal'!G113 -> 1817 | H73: =+'Vista Principal'!H113 -> 12648.76814 | I73: =+'Vista Principal'!I113 -> 1698.970242 | J73: =+'Vista Principal'!J113 -> 244.1843274 | K73: =+'Vista Principal'!K113 -> 638.04 | L73: =+'Vista Principal'!L113 -> 0 | M73: =+'Vista Principal'!M113 -> 2581.194569 | N73: =+'Vista Principal'!N113 -> 10949.7979
B74: =+'Vista Principal'!B114 -> 67 | C74: =+'Vista Principal'!C114 -> 2030-05-28 | D74: =+'Vista Principal'!D114 -> 2 | E74: =+'Vista Principal'!E114 -> 2030-05-28 | F74: =+'Vista Principal'!F114 -> 29 | G74: =+'Vista Principal'!G114 -> 1846 | H74: =+'Vista Principal'!H114 -> 10949.7979 | I74: =+'Vista Principal'!I114 -> 1751.758401 | J74: =+'Vista Principal'!J114 -> 191.3961678 | K74: =+'Vista Principal'!K114 -> 638.04 | L74: =+'Vista Principal'!L114 -> 0 | M74: =+'Vista Principal'!M114 -> 2581.194569 | N74: =+'Vista Principal'!N114 -> 9198.039502
B75: =+'Vista Principal'!B115 -> 68 | C75: =+'Vista Principal'!C115 -> 2030-06-28 | D75: =+'Vista Principal'!D115 -> 5 | E75: =+'Vista Principal'!E115 -> 2030-06-28 | F75: =+'Vista Principal'!F115 -> 31 | G75: =+'Vista Principal'!G115 -> 1877 | H75: =+'Vista Principal'!H115 -> 9198.039502 | I75: =+'Vista Principal'!I115 -> 1771.187068 | J75: =+'Vista Principal'!J115 -> 171.9675011 | K75: =+'Vista Principal'!K115 -> 638.04 | L75: =+'Vista Principal'!L115 -> 0 | M75: =+'Vista Principal'!M115 -> 2581.194569 | N75: =+'Vista Principal'!N115 -> 7426.852434
B76: =+'Vista Principal'!B116 -> 69 | C76: =+'Vista Principal'!C116 -> 2030-07-28 | D76: =+'Vista Principal'!D116 -> 7 | E76: =+'Vista Principal'!E116 -> 2030-07-29 | F76: =+'Vista Principal'!F116 -> 31 | G76: =+'Vista Principal'!G116 -> 1908 | H76: =+'Vista Principal'!H116 -> 7426.852434 | I76: =+'Vista Principal'!I116 -> 1804.301365 | J76: =+'Vista Principal'!J116 -> 138.8532039 | K76: =+'Vista Principal'!K116 -> 638.04 | L76: =+'Vista Principal'!L116 -> 0 | M76: =+'Vista Principal'!M116 -> 2581.194569 | N76: =+'Vista Principal'!N116 -> 5622.551069
B77: =+'Vista Principal'!B117 -> 70 | C77: =+'Vista Principal'!C117 -> 2030-08-28 | D77: =+'Vista Principal'!D117 -> 3 | E77: =+'Vista Principal'!E117 -> 2030-08-28 | F77: =+'Vista Principal'!F117 -> 30 | G77: =+'Vista Principal'!G117 -> 1938 | H77: =+'Vista Principal'!H117 -> 5622.551069 | I77: =+'Vista Principal'!I117 -> 1841.456213 | J77: =+'Vista Principal'!J117 -> 101.6983562 | K77: =+'Vista Principal'!K117 -> 638.04 | L77: =+'Vista Principal'!L117 -> 0 | M77: =+'Vista Principal'!M117 -> 2581.194569 | N77: =+'Vista Principal'!N117 -> 3781.094857
B78: =+'Vista Principal'!B118 -> 71 | C78: =+'Vista Principal'!C118 -> 2030-09-28 | D78: =+'Vista Principal'!D118 -> 6 | E78: =+'Vista Principal'!E118 -> 2030-09-28 | F78: =+'Vista Principal'!F118 -> 31 | G78: =+'Vista Principal'!G118 -> 1969 | H78: =+'Vista Principal'!H118 -> 3781.094857 | I78: =+'Vista Principal'!I118 -> 1872.462827 | J78: =+'Vista Principal'!J118 -> 70.69174186 | K78: =+'Vista Principal'!K118 -> 638.04 | L78: =+'Vista Principal'!L118 -> 0 | M78: =+'Vista Principal'!M118 -> 2581.194569 | N78: =+'Vista Principal'!N118 -> 1908.63203
B79: =+'Vista Principal'!B119 -> 72 | C79: =+'Vista Principal'!C119 -> 2030-10-28 | D79: =+'Vista Principal'!D119 -> 1 | E79: =+'Vista Principal'!E119 -> 2030-10-28 | F79: =+'Vista Principal'!F119 -> 30 | G79: =+'Vista Principal'!G119 -> 1999 | H79: =+'Vista Principal'!H119 -> 1908.63203 | I79: =+'Vista Principal'!I119 -> 1908.63203 | J79: =+'Vista Principal'!J119 -> 34.52253927 | K79: =+'Vista Principal'!K119 -> 638.04 | L79: =+'Vista Principal'!L119 -> 0 | M79: =+'Vista Principal'!M119 -> 2581.194569 | N79: =+'Vista Principal'!N119 -> 0

Sheet RCI (hidden)
A5: Cuotas de Reporte de Deuda | E5: Tipo de Cuota simulada | H5: Cálculo de RCI
A6: Ingresar datos de cuotas de reporte de ISTS | E6: Ingresar dato de Ingreso Neto del cliente de ISTS
B8: Importe Cuota 1 | C8: 1,978.00 | E8: TIPO DE CUOTA | F8: =+'Vista Principal'!C11 -> TARIFA TITULAR + CONYUGE | H8: RCI estimado | I8: =(C14+F9)/F13 -> 75.99%
B9: Importe Cuota 2 | C9: 0.00 | E9: VALOR CUOTA | F9: =+'Vista Principal'!C37 -> 2581.194569
B10: Importe Cuota 3 | C10: 0.00
B11: Importe Cuota 4 | C11: 0.00 | E11: Ingreso Neto del Cliente
B12: Importe Cuota 5 | C12: 0.00 | E12: Ingresar dato de Ingreso Neto del cliente de ISTS
B13: Importe Cuota 6 | C13: 0.00 | E13: INGRESO NETO DEL CLIENTE | F13: 6,000.00
B14: TOTAL CUOTAS | C14: =SUM(C8:C13) -> 1,978.00

Sheet Proceso Prima de Seguro (hidden)
D2: Proceso de Cálculo de la Prima de Seguros
B7: 1) Datos esenciales del préstamo | G7: 3) Calculo del valor presente del Seguro
B9: Producto | D9: ='Vista Principal'!C9 -> Préstamos Vehiculares (Clientes) | G9: Suma de Prima Mensual | H9: =SUM(L36:L395) -> 7,328.01
B10: Tipo de Seguro | D10: ='Vista Principal'!C10 -> Seguro de Desgravamen con Devolución | G10: VPN - Valor Presente | H10: =NPV(D16,L36:L395) -> 6,689.61
B11: Tarifa | D11: ='Vista Principal'!C11 -> TARIFA TITULAR + CONYUGE
B12: Monto inicial | D12: ='Vista Principal'!C15 -> 80,000.00 | G12: 4) Calculo del Monto Adicional del Seguro y MAF
B13: =D10 -> Seguro de Desgravamen con Devolución | C13: =+CONCATENATE(D11,D9,D10) -> TARIFA TITULAR + CONYUGEPréstamos Vehiculares (Clientes)Seguro de Desgravamen con Devolución | D13: =VLOOKUP(C13,capuccinomoreno,2,0) -> 0.2716%
B14: Monto adicional Seguro de Desgravamen/ Vida | G14: Monto inicial | H14: =D12 -> 80,000.00
B15: MAF Inicial | D15: =D12+D14 -> 80,000 | G15: Monto adicional de Desgravamen / Vida | H15: =H10 -> 6,689.61
B16: Costo Capital | D16: =INDEX(_xlfn._xlws.FILTER(Tabla2[],Tabla2[TARIFA]=D11),0,2) -> 0.2871% | G16: Prima de Seguro de Desgravamen / Vida | H16: =H15/H14 -> 8.3620%
B17: Moneda | D17: ='Vista Principal'!C24 -> Soles | G17: MAF Inicial | H17: =H14+H15 -> 86,689.61
B18: Plazo Remanente Meses | D18: ='Vista Principal'!C25 -> 72
B19: Fecha de Desembolso | D19: ='Vista Principal'!C27 -> 2025-05-08
B20: Fecha de 1er Pago | D20: ='Vista Principal'!C28 -> 2024-11-30
B21: Cuota Julio | D21: ='Vista Principal'!C29 -> 1
B22: Cuota Diciembre | D22: ='Vista Principal'!C30 -> 1
B23: TEA | D23: ='Vista Principal'!C31 -> 24.00%
B24: TEA TOTAL | D24: =(1+(((1+D23)^(30/360)-1)+D13))^12-1 -> 28.03%
B25: Monto del Bien | D25: =+'Vista Principal'!C33 -> 120,000.00
B26: Seguro del Bien | D26: =+'Vista Principal'!C35 -> 0.5317%
B27: Portes | D27: 0
B28: Cuota | D28: =(D15+(D26*D25+D27)*R34)/Q34 -> 2,541.23
B30: TCEA | D30: 18.90%
W31: =D15-W34-D14 -> -42,938.09
B33: 2) Creación de Cronograma de prima mensual
Q34: =SUM(Q36:Q395) -> 42.03 | R34: =SUM(R36:R395) -> 42.03 | W34: =SUM(W36:W395) -> 122,938.09
B35: N° Cuota | D35: Fecha de pago | E35: Día | F35: Fecha de pago | G35: Días | H35: Dias Acumulados | I35: Saldo Inicial | J35: Amortización | K35: Interés | L35: Seguro Desgravamen | M35: Seguro del Bien | N35: Portes | O35: Cuota Constante | P35: Saldo Final | Q35: Factor Cronograma | R35: Factor Cronograma 2 | T35: Vector i,1 Cuota | U35: Vector i,2 Días Acum | V35: Vector i,3 Factor | W35: Vector i,4 Calculo VA | X35: VPN - Valor Presente | Y35: VPN - Valor Presente
B36: 1 | D36: =D20 -> 2024-11-30 | E36: =IF(B36<=$D$18,WEEKDAY(D36,2),"") -> 6 | F36: =IF(E36=7,D36+1,D36) -> 2024-11-30 | G36: =F36-D19 -> -159 | H36: =G36 -> -159 | I36: =D15 -> 80,000.00 | J36: =IF(B36>D$18,"",O36-N36-M36-L36-K36) -> 10,295.70 | K36: =IF(B36>D$18,"",((1+D$23)^(G36/360)-1)*I36) -> -7,250.71 | L36: =IF(B36>D$18,"",((1+D$13)^(G36/30)-1)*I36) -> -1,141.80 | M36: =IF(B36>D$18,"",D$25*D$26) -> 638.04 | N36: =IF(B36>D$18,"",D$27) -> 0 | O36: =IF(B36>D$18,"",IF(B36=D$18,I36+K36+L36+M36+N36,IF(AND(D$21=2,MONTH(F36)=7),2*D$28,IF(AND(D$22=2,MONTH(F36)=12),2*D$28,D$28)))) -> 2,541.23 | P36: =IF(B36>D$18,"",I36-J36) -> 69,704.30 | Q36: =IFERROR(IF(AND(MONTH(F36)=7,D$21=2),2/(1+D$24)^(H36/360),IF(AND(MONTH(F36)=12,D$22=2),2/(1+D$24)^(H36/360),1/(1+D$24)^(H36/360))),"") -> 1.12 | R36: =IFERROR(1/(1+D$24)^(H36/360),"") -> 1.12 | T36: =IFERROR(J36+K36+L36+M36+N36,"") -> 2541.229821 | U36: =H36 -> -159 | V36: =IFERROR((1+D$30)^(U36/360),"") -> 0.93 | W36: =IFERROR(ROUND(T36/V36,2),"") -> 2,743.10 | X36: =L36/(1+$I$9) -> -1,141.80 | Y36: =L36/(1+$Q$28) -> -1,141.80
B37: 2 | D37: =IF(B37>$D$18,"",EDATE(D36,1)) -> 2024-12-30 | E37: 1 | F37: =IF(E37=7,D37+1,D37) -> 2024-12-30 | G37: =IF(B37>D$18,"",F37-F36) -> 30 | H37: =IFERROR(G37+H36,"") -> -129 | I37: =IF(B37>D$18,"",P36) -> 69,704.30 | J37: 453.09 | K37: 1,260.78 | L37: 189.32 | M37: 638.04 | N37: 0 | O37: 2,541.23 | P37: 69,251.21 | Q37: 1.09 | R37: 1.09 | T37: 2541.229821 | U37: -129 | V37: 0.94 | W37: 2,703.82 | X37: =IF(O37="",0,L37/((1+$I$9)^B37)) -> 189.32 | Y37: =IF(O37="",0,L37/((1+$Q$28)^B37)) -> 189.32
B38: 3 | D38: 2025-01-30 | E38: 4 | F38: 2025-01-30 | G38: 31 | H38: -98 | I38: 69,251.21 | J38: 414.10 | K38: 1,294.73 | L38: 194.36 | M38: 638.04 | N38: 0 | O38: 2,541.23 | P38: 68,837.11 | Q38: 1.07 | R38: 1.07 | T38: 2541.229821 | U38: -98 | V38: 0.95 | W38: 2,663.82 | X38: 194.36 | Y38: 194.36
B39: 4 | D39: 2025-02-28 | E39: 5 | F39: 2025-02-28 | G39: 29 | H39: -69 | I39: 68,837.11 | J39: 519.24 | K39: 1,203.23 | L39: 180.72 | M39: 638.04 | N39: 0 | O39: 2,541.23 | P39: 68,317.88 | Q39: 1.05 | R39: 1.05 | T39: 2541.229821 | U39: -69 | V39: 0.97 | W39: 2,626.94 | X39: 180.72 | Y39: 180.72
B40: 5 | D40: 2025-03-28 | E40: 5 | F40: 2025-03-28 | G40: 28 | H40: -41 | I40: 68,317.88 | J40: 577.39 | K40: 1,152.63 | L40: 173.17 | M40: 638.04 | N40: 0 | O40: 2,541.23 | P40: 67,740.49 | Q40: 1.03 | R40: 1.03 | T40: 2541.229821 | U40: -41 | V40: 0.98 | W40: 2,591.82 | X40: 173.17 | Y40: 173.17
B41: 6 | D41: 2025-04-28 | E41: 1 | F41: 2025-04-28 | G41: 31 | H41: -10 | I41: 67,740.49 | J41: 446.58 | K41: 1,266.48 | L41: 190.12 | M41: 638.04 | N41: 0 | O41: 2,541.23 | P41: 67,293.91 | Q41: 1.01 | R41: 1.01 | T41: 2541.229821 | U41: -10 | V41: 1.00 | W41: 2,553.48 | X41: 190.12 | Y41: 190.12
B42: 7 | D42: 2025-05-28 | E42: 3 | F42: 2025-05-28 | G42: 30 | H42: 20 | I42: 67,293.91 | J42: 503.24 | K42: 1,217.18 | L42: 182.77 | M42: 638.04 | N42: 0 | O42: 2,541.23 | P42: 66,790.67 | Q42: 0.99 | R42: 0.99 | T42: 2541.229821 | U42: 20 | V42: 1.01 | W42: 2,516.91 | X42: 182.77 | Y42: 182.77
B43: 8 | D43: 2025-06-28 | E43: 6 | F43: 2025-06-28 | G43: 31 | H43: 51 | I43: 66,790.67 | J43: 467.01 | K43: 1,248.73 | L43: 187.46 | M43: 638.04 | N43: 0 | O43: 2,541.23 | P43: 66,323.66 | Q43: 0.97 | R43: 0.97 | T43: 2541.229821 | U43: 51 | V43: 1.02 | W43: 2,479.68 | X43: 187.46 | Y43: 187.46
B44: 9 | D44: 2025-07-28 | E44: 1 | F44: 2025-07-28 | G44: 30 | H44: 81 | I44: 66,323.66 | J44: 523.42 | K44: 1,199.63 | L44: 180.14 | M44: 638.04 | N44: 0 | O44: 2,541.23 | P44: 65,800.24 | Q44: 0.95 | R44: 0.95 | T44: 2541.229821 | U44: 81 | V44: 1.04 | W44: 2,444.17 | X44: 180.14 | Y44: 180.14
B45: 10 | D45: 2025-08-28 | E45: 4 | F45: 2025-08-28 | G45: 31 | H45: 112 | I45: 65,800.24 | J45: 488.30 | K45: 1,230.21 | L45: 184.68 | M45: 638.04 | N45: 0 | O45: 2,541.23 | P45: 65,311.94 | Q45: 0.93 | R45: 0.93 | T45: 2541.229821 | U45: 112 | V45: 1.06 | W45: 2,408.02 | X45: 184.68 | Y45: 184.68
B46: 11 | D46: 2025-09-28 | E46: 7 | F46: 2025-09-29 | G46: 32 | H46: 144 | I46: 65,311.94 | J46: 453.11 | K46: 1,260.85 | L46: 189.23 | M46: 638.04 | N46: 0 | O46: 2,541.23 | P46: 64,858.83 | Q46: 0.91 | R46: 0.91 | T46: 2541.229821 | U46: 144 | V46: 1.07 | W46: 2,371.25 | X46: 189.23 | Y46: 189.23
B47: 12 | D47: 2025-10-28 | E47: 2 | F47: 2025-10-28 | G47: 29 | H47: 173 | I47: 64,858.83 | J47: 599.22 | K47: 1,133.69 | L47: 170.28 | M47: 638.04 | N47: 0 | O47: 2,541.23 | P47: 64,259.61 | Q47: 0.89 | R47: 0.89 | T47: 2541.229821 | U47: 173 | V47: 1.09 | W47: 2,338.42 | X47: 170.28 | Y47: 170.28
B48: 13 | D48: 2025-11-28 | E48: 5 | F48: 2025-11-28 | G48: 31 | H48: 204 | I48: =IF(B48>D$18,"",P47) -> 64,259.61 | J48: =IF(B48>D$18,"",O48-N48-M48-L48-K48) -> 521.43 | K48: 1,201.40 | L48: 180.35 | M48: 638.04 | N48: 0 | O48: 2,541.23 | P48: =IF(B48>D$18,"",I48-J48) -> 63,738.18 | Q48: 0.87 | R48: 0.87 | T48: =IFERROR(J48+K48+L48+M48+N48,"") -> 2541.229821 | U48: 204 | V48: 1.10 | W48: 2,303.83 | X48: 180.35 | Y48: =IF(O48="",0,L48/((1+$Q$28)^B48)) -> 180.35
B49: 14 | D49: 2025-12-28 | E49: 7 | F49: 2025-12-29 | G49: 31 | H49: 235 | I49: 63,738.18 | J49: 532.64 | K49: 1,191.66 | L49: 178.89 | M49: 638.04 | N49: 0 | O49: 2,541.23 | P49: 63,205.54 | Q49: 0.85 | R49: 0.85 | T49: 2541.229821 | U49: 235 | V49: 1.12 | W49: 2,269.75 | X49: 178.89 | Y49: 178.89
B50: 15 | D50: 2026-01-28 | E50: 3 | F50: 2026-01-28 | G50: 30 | H50: 265 | I50: 63,205.54 | J50: 588.29 | K50: 1,143.24 | L50: 171.67 | M50: 638.04 | N50: 0 | O50: 2,541.23 | P50: 62,617.25 | Q50: 0.83 | R50: 0.83 | T50: 2541.229821 | U50: 265 | V50: 1.14 | W50: 2,237.25 | X50: 171.67 | Y50: 171.67
B51: 16 | D51: 2026-02-28 | E51: 6 | F51: 2026-02-28 | G51: 31 | H51: 296 | I51: 62,617.25 | J51: 556.75 | K51: 1,170.70 | L51: 175.75 | M51: 638.04 | N51: 0 | O51: 2,541.23 | P51: 62,060.50 | Q51: 0.82 | R51: 0.82 | T51: 2541.229821 | U51: 296 | V51: 1.15 | W51: 2,204.15 | X51: 175.75 | Y51: 175.75
B52: 17 | D52: 2026-03-28 | E52: 6 | F52: 2026-03-28 | G52: 28 | H52: 324 | I52: 62,060.50 | J52: 698.82 | K52: 1,047.06 | L52: 157.31 | M52: 638.04 | N52: 0 | O52: 2,541.23 | P52: 61,361.68 | Q52: 0.80 | R52: 0.80 | T52: 2541.229821 | U52: 324 | V52: 1.17 | W52: 2,174.68 | X52: 157.31 | Y52: 157.31
B53: 18 | D53: 2026-04-28 | E53: 2 | F53: 2026-04-28 | G53: 31 | H53: 355 | I53: 61,361.68 | J53: 583.74 | K53: 1,147.22 | L53: 172.22 | M53: 638.04 | N53: 0 | O53: 2,541.23 | P53: 60,777.94 | Q53: 0.78 | R53: 0.78 | T53: 2541.229821 | U53: 355 | V53: 1.19 | W53: 2,142.51 | X53: 172.22 | Y53: 172.22
B54: 19 | D54: 2026-05-28 | E54: 4 | F54: 2026-05-28 | G54: 30 | H54: 385 | I54: 60,777.94 | J54: 638.79 | K54: 1,099.33 | L54: 165.07 | M54: 638.04 | N54: 0 | O54: 2,541.23 | P54: 60,139.14 | Q54: 0.77 | R54: 0.77 | T54: 2541.229821 | U54: 385 | V54: 1.20 | W54: 2,111.83 | X54: 165.07 | Y54: 165.07
B55: 20 | D55: 2026-06-28 | E55: 7 | F55: 2026-06-29 | G55: 32 | H55: 417 | I55: 60,139.14 | J55: 567.96 | K55: 1,160.99 | L55: 174.24 | M55: 638.04 | N55: 0 | O55: 2,541.23 | P55: 59,571.18 | Q55: 0.75 | R55: 0.75 | T55: 2541.229821 | U55: 417 | V55: 1.22 | W55: 2,079.59 | X55: 174.24 | Y55: 174.24
B56: 21 | D56: 2026-07-28 | E56: 2 | F56: 2026-07-28 | G56: 29 | H56: 446 | I56: 59,571.18 | J56: 705.52 | K56: 1,041.27 | L56: 156.40 | M56: 638.04 | N56: 0 | O56: 2,541.23 | P56: 58,865.66 | Q56: 0.74 | R56: 0.74 | T56: 2541.229821 | U56: 446 | V56: 1.24 | W56: 2,050.80 | X56: 156.40 | Y56: 156.40
B57: 22 | D57: 2026-08-28 | E57: 5 | F57: 2026-08-28 | G57: 31 | H57: 477 | I57: 58,865.66 | J57: 637.42 | K57: 1,100.56 | L57: 165.22 | M57: 638.04 | N57: 0 | O57: 2,541.23 | P57: 58,228.24 | Q57: 0.72 | R57: 0.72 | T57: 2541.229821 | U57: 477 | V57: 1.26 | W57: 2,020.46 | X57: 165.22 | Y57: 165.22
B58: 23 | D58: 2026-09-28 | E58: 1 | F58: 2026-09-28 | G58: 31 | H58: 508 | I58: 58,228.24 | J58: 651.12 | K58: 1,088.64 | L58: 163.43 | M58: 638.04 | N58: 0 | O58: 2,541.23 | P58: 57,577.12 | Q58: 0.71 | R58: 0.71 | T58: 2541.229821 | U58: 508 | V58: 1.28 | W58: 1,990.57 | X58: 163.43 | Y58: 163.43
B59: 24 | D59: 2026-10-28 | E59: 3 | F59: 2026-10-28 | G59: 30 | H59: 538 | I59: 57,577.12 | J59: 705.38 | K59: 1,041.43 | L59: 156.38 | M59: 638.04 | N59: 0 | O59: 2,541.23 | P59: 56,871.74 | Q59: 0.69 | R59: 0.69 | T59: 2541.229821 | U59: 538 | V59: 1.30 | W59: 1,962.07 | X59: 156.38 | Y59: 156.38
B60: 25 | D60: 2026-11-28 | E60: 6 | F60: 2026-11-28 | G60: 31 | H60: 569 | I60: 56,871.74 | J60: 680.29 | K60: 1,063.28 | L60: 159.62 | M60: 638.04 | N60: 0 | O60: 2,541.23 | P60: 56,191.45 | Q60: 0.68 | R60: 0.68 | T60: 2541.229821 | U60: 569 | V60: 1.31 | W60: 1,933.04 | X60: 159.62 | Y60: 159.62
B61: 26 | D61: 2026-12-28 | E61: 1 | F61: 2026-12-28 | G61: 30 | H61: 599 | I61: 56,191.45 | J61: 734.21 | K61: 1,016.37 | L61: 152.62 | M61: 638.04 | N61: 0 | O61: 2,541.23 | P61: 55,457.25 | Q61: 0.66 | R61: 0.66 | T61: 2541.229821 | U61: 599 | V61: 1.33 | W61: 1,905.36 | X61: 152.62 | Y61: 152.62
B62: 27 | D62: 2027-01-28 | E62: 4 | F62: 2027-01-28 | G62: 31 | H62: 630 | I62: 55,457.25 | J62: 710.71 | K62: 1,036.83 | L62: 155.65 | M62: 638.04 | N62: 0 | O62: 2,541.23 | P62: 54,746.54 | Q62: 0.65 | R62: 0.65 | T62: 2541.229821 | U62: 630 | V62: 1.35 | W62: 1,877.17 | X62: 155.65 | Y62: 155.65
B63: 28 | D63: 2027-02-28 | E63: 7 | F63: 2027-03-01 | G63: 32 | H63: 662 | I63: 54,746.54 | J63: 687.69 | K63: 1,056.88 | L63: 158.62 | M63: 638.04 | N63: 0 | O63: 2,541.23 | P63: 54,058.85 | Q63: 0.63 | R63: 0.63 | T63: 2541.229821 | U63: 662 | V63: 1.37 | W63: 1,848.52 | X63: 158.62 | Y63: 158.62
B64: 29 | D64: 2027-03-28 | E64: 7 | F64: 2027-03-29 | G64: 28 | H64: 690 | I64: 54,058.85 | J64: 854.11 | K64: 912.06 | L64: 137.02 | M64: 638.04 | N64: 0 | O64: 2,541.23 | P64: 53,204.74 | Q64: 0.62 | R64: 0.62 | T64: 2541.229821 | U64: 690 | V64: 1.39 | W64: 1,823.80 | X64: 137.02 | Y64: 137.02
B65: 30 | D65: 2027-04-28 | E65: 3 | F65: 2027-04-28 | G65: 30 | H65: 720 | I65: 53,204.74 | J65: 796.34 | K65: 962.35 | L65: 144.50 | M65: 638.04 | N65: 0 | O65: 2,541.23 | P65: 52,408.40 | Q65: 0.61 | R65: 0.61 | T65: 2541.229821 | U65: 720 | V65: 1.41 | W65: 1,797.68 | X65: 144.50 | Y65: 144.50
B66: 31 | D66: 2027-05-28 | E66: 5 | F66: 2027-05-28 | G66: 30 | H66: 750 | I66: 52,408.40 | J66: 812.91 | K66: 947.94 | L66: 142.34 | M66: 638.04 | N66: 0 | O66: 2,541.23 | P66: 51,595.50 | Q66: 0.60 | R66: 0.60 | T66: 2541.229821 | U66: 750 | V66: 1.43 | W66: 1,771.94 | X66: 142.34 | Y66: 142.34
B67: 32 | D67: 2027-06-28 | E67: 1 | F67: 2027-06-28 | G67: 31 | H67: 781 | I67: 51,595.50 | J67: 793.74 | K67: 964.63 | L67: 144.81 | M67: 638.04 | N67: 0 | O67: 2,541.23 | P67: 50,801.75 | Q67: 0.59 | R67: 0.59 | T67: 2541.229821 | U67: 781 | V67: 1.46 | W67: 1,745.73 | X67: 144.81 | Y67: 144.81
B68: 33 | D68: 2027-07-28 | E68: 3 | F68: 2027-07-28 | G68: 30 | H68: 811 | I68: 50,801.75 | J68: 846.33 | K68: 918.88 | L68: 137.98 | M68: 638.04 | N68: 0 | O68: 2,541.23 | P68: 49,955.42 | Q68: 0.57 | R68: 0.57 | T68: 2541.229821 | U68: 811 | V68: 1.48 | W68: 1,720.73 | X68: 137.98 | Y68: 137.98
B69: 34 | D69: 2027-08-28 | E69: 6 | F69: 2027-08-28 | G69: 31 | H69: 842 | I69: 49,955.42 | J69: 829.01 | K69: 933.97 | L69: 140.21 | M69: 638.04 | N69: 0 | O69: 2,541.23 | P69: 49,126.41 | Q69: 0.56 | R69: 0.56 | T69: 2541.229821 | U69: 842 | V69: 1.50 | W69: 1,695.28 | X69: 140.21 | Y69: 140.21
B70: 35 | D70: 2027-09-28 | E70: 2 | F70: 2027-09-28 | G70: 31 | H70: 873 | I70: 49,126.41 | J70: 846.84 | K70: 918.47 | L70: 137.88 | M70: 638.04 | N70: 0 | O70: 2,541.23 | P70: 48,279.57 | Q70: 0.55 | R70: 0.55 | T70: 2541.229821 | U70: 873 | V70: 1.52 | W70: 1,670.20 | X70: 137.88 | Y70: 137.88
B71: 36 | D71: 2027-10-28 | E71: 4 | F71: 2027-10-28 | G71: 30 | H71: 903 | I71: 48,279.57 | J71: 898.80 | K71: 873.26 | L71: 131.13 | M71: 638.04 | N71: 0 | O71: 2,541.23 | P71: 47,380.77 | Q71: 0.54 | R71: 0.54 | T71: 2541.229821 | U71: 903 | V71: 1.54 | W71: 1,646.28 | X71: 131.13 | Y71: 131.13
B72: 37 | D72: 2027-11-28 | E72: 7 | F72: 2027-11-29 | G72: 32 | H72: 935 | I72: 47,380.77 | J72: 851.23 | K72: 914.69 | L72: 137.28 | M72: 638.04 | N72: 0 | O72: 2,541.23 | P72: 46,529.55 | Q72: 0.53 | R72: 0.53 | T72: 2541.229821 | U72: 935 | V72: 1.57 | W72: 1,621.15 | X72: 137.28 | Y72: 137.28
B73: 38 | D73: 2027-12-28 | E73: 2 | F73: 2027-12-28 | G73: 29 | H73: 964 | I73: 46,529.55 | J73: 967.72 | K73: 813.31 | L73: 122.16 | M73: 638.04 | N73: 0 | O73: 2,541.23 | P73: 45,561.82 | Q73: 0.52 | R73: 0.52 | T73: 2541.229821 | U73: 964 | V73: 1.59 | W73: 1,598.70 | X73: 122.16 | Y73: 122.16
B74: 39 | D74: 2028-01-28 | E74: 5 | F74: 2028-01-28 | G74: 31 | H74: 995 | I74: 45,561.82 | J74: 923.48 | K74: 851.83 | L74: 127.88 | M74: 638.04 | N74: 0 | O74: 2,541.23 | P74: 44,638.34 | Q74: 0.51 | R74: 0.51 | T74: 2541.229821 | U74: 995 | V74: 1.61 | W74: 1,575.05 | X74: 127.88 | Y74: 127.88
B75: 40 | D75: 2028-02-28 | E75: 1 | F75: 2028-02-28 | G75: 31 | H75: 1026 | I75: 44,638.34 | J75: 943.34 | K75: 834.56 | L75: 125.28 | M75: 638.04 | N75: 0 | O75: 2,541.23 | P75: 43,694.99 | Q75: 0.49 | R75: 0.49 | T75: 2541.229821 | U75: 1026 | V75: 1.64 | W75: 1,551.75 | X75: 125.28 | Y75: 125.28
B76: 41 | D76: 2028-03-28 | E76: 2 | F76: 2028-03-28 | G76: 29 | H76: 1055 | I76: 43,694.99 | J76: 1,024.71 | K76: 763.76 | L76: 114.71 | M76: 638.04 | N76: 0 | O76: 2,541.23 | P76: 42,670.28 | Q76: 0.48 | R76: 0.48 | T76: 2541.229821 | U76: 1055 | V76: 1.66 | W76: 1,530.27 | X76: 114.71 | Y76: 114.71
B77: 42 | D77: 2028-04-28 | E77: 5 | F77: 2028-04-28 | G77: 31 | H77: 1086 | I77: 42,670.28 | J77: 985.66 | K77: 797.77 | L77: 119.76 | M77: 638.04 | N77: 0 | O77: 2,541.23 | P77: 41,684.62 | Q77: 0.47 | R77: 0.47 | T77: 2541.229821 | U77: 1086 | V77: 1.69 | W77: 1,507.63 | X77: 119.76 | Y77: 119.76
B78: 43 | D78: 2028-05-28 | E78: 7 | F78: 2028-05-29 | G78: 31 | H78: 1117 | I78: 41,684.62 | J78: 1,006.86 | K78: 779.34 | L78: 116.99 | M78: 638.04 | N78: 0 | O78: 2,541.23 | P78: 40,677.77 | Q78: 0.46 | R78: 0.46 | T78: 2541.229821 | U78: 1117 | V78: 1.71 | W78: 1,485.33 | X78: 116.99 | Y78: 116.99
B79: 44 | D79: 2028-06-28 | E79: 3 | F79: 2028-06-28 | G79: 30 | H79: 1147 | I79: 40,677.77 | J79: 1,056.95 | K79: 735.76 | L79: 110.48 | M79: 638.04 | N79: 0 | O79: 2,541.23 | P79: 39,620.82 | Q79: 0.46 | R79: 0.46 | T79: 2541.229821 | U79: 1147 | V79: 1.74 | W79: 1,464.06 | X79: 110.48 | Y79: 110.48
B80: 45 | D80: 2028-07-28 | E80: 5 | F80: 2028-07-28 | G80: 30 | H80: 1177 | I80: 39,620.82 | J80: 1,078.93 | K80: 716.64 | L80: 107.61 | M80: 638.04 | N80: 0 | O80: 2,541.23 | P80: 38,541.89 | Q80: 0.45 | R80: 0.45 | T80: 2541.229821 | U80: 1177 | V80: 1.76 | W80: 1,443.10 | X80: 107.61 | Y80: 107.61
B81: 46 | D81: 2028-08-28 | E81: 1 | F81: 2028-08-28 | G81: 31 | H81: 1208 | I81: 38,541.89 | J81: 1,074.43 | K81: 720.58 | L81: 108.17 | M81: 638.04 | N81: 0 | O81: 2,541.23 | P81: 37,467.45 | Q81: 0.44 | R81: 0.44 | T81: 2541.229821 | U81: 1208 | V81: 1.79 | W81: 1,421.75 | X81: 108.17 | Y81: 108.17
B82: 47 | D82: 2028-09-28 | E82: 4 | F82: 2028-09-28 | G82: 31 | H82: 1239 | I82: 37,467.45 | J82: 1,097.54 | K82: 700.50 | L82: 105.16 | M82: 638.04 | N82: 0 | O82: 2,541.23 | P82: 36,369.92 | Q82: 0.43 | R82: 0.43 | T82: 2541.229821 | U82: 1239 | V82: 1.81 | W82: 1,400.72 | X82: 105.16 | Y82: 105.16
B83: 48 | D83: 2028-10-28 | E83: 6 | F83: 2028-10-28 | G83: 30 | H83: 1269 | I83: 36,369.92 | J83: 1,146.57 | K83: 657.84 | L83: 98.78 | M83: 638.04 | N83: 0 | O83: 2,541.23 | P83: 35,223.35 | Q83: 0.42 | R83: 0.42 | T83: 2541.229821 | U83: 1269 | V83: 1.84 | W83: 1,380.66 | X83: 98.78 | Y83: 98.78
B84: 49 | D84: 2028-11-28 | E84: 2 | F84: 2028-11-28 | G84: 31 | H84: 1300 | I84: 35,223.35 | J84: 1,145.79 | K84: 658.54 | L84: 98.86 | M84: 638.04 | N84: 0 | O84: 2,541.23 | P84: 34,077.56 | Q84: 0.41 | R84: 0.41 | T84: 2541.229821 | U84: 1300 | V84: 1.87 | W84: 1,360.23 | X84: 98.86 | Y84: 98.86
B85: 50 | D85: 2028-12-28 | E85: 4 | F85: 2028-12-28 | G85: 30 | H85: 1330 | I85: 34,077.56 | J85: 1,194.25 | K85: 616.38 | L85: 92.55 | M85: 638.04 | N85: 0 | O85: 2,541.23 | P85: 32,883.31 | Q85: 0.40 | R85: 0.40 | T85: 2541.229821 | U85: 1330 | V85: 1.90 | W85: 1,340.76 | X85: 92.55 | Y85: 92.55
B86: 51 | D86: 2029-01-28 | E86: 7 | F86: 2029-01-29 | G86: 32 | H86: 1362 | I86: 32,883.31 | J86: 1,173.10 | K86: 634.81 | L86: 95.27 | M86: 638.04 | N86: 0 | O86: 2,541.23 | P86: 31,710.20 | Q86: 0.39 | R86: 0.39 | T86: 2541.229821 | U86: 1362 | V86: 1.92 | W86: 1,320.29 | X86: 95.27 | Y86: 95.27
B87: 52 | D87: 2029-02-28 | E87: 3 | F87: 2029-02-28 | G87: 30 | H87: 1392 | I87: 31,710.20 | J87: 1,243.50 | K87: 573.56 | L87: 86.12 | M87: 638.04 | N87: 0 | O87: 2,541.23 | P87: 30,466.70 | Q87: 0.38 | R87: 0.38 | T87: 2541.229821 | U87: 1392 | V87: 1.95 | W87: 1,301.38 | X87: 86.12 | Y87: 86.12
B88: 53 | D88: 2029-03-28 | E88: 3 | F88: 2029-03-28 | G88: 28 | H88: 1420 | I88: 30,466.70 | J88: 1,311.94 | K88: 514.02 | L88: 77.22 | M88: 638.04 | N88: 0 | O88: 2,541.23 | P88: 29,154.76 | Q88: 0.38 | R88: 0.38 | T88: 2541.229821 | U88: 1420 | V88: 1.98 | W88: 1,283.98 | X88: 77.22 | Y88: 77.22
B89: 54 | D89: 2029-04-28 | E89: 6 | F89: 2029-04-28 | G89: 31 | H89: 1451 | I89: 29,154.76 | J89: 1,276.28 | K89: 545.08 | L89: 81.83 | M89: 638.04 | N89: 0 | O89: 2,541.23 | P89: 27,878.47 | Q89: 0.37 | R89: 0.37 | T89: 2541.229821 | U89: 1451 | V89: 2.01 | W89: 1,264.99 | X89: 81.83 | Y89: 81.83
B90: 55 | D90: 2029-05-28 | E90: 1 | F90: 2029-05-28 | G90: 30 | H90: 1481 | I90: 27,878.47 | J90: 1,323.22 | K90: 504.25 | L90: 75.72 | M90: 638.04 | N90: 0 | O90: 2,541.23 | P90: 26,555.26 | Q90: 0.36 | R90: 0.36 | T90: 2541.229821 | U90: 1481 | V90: 2.04 | W90: 1,246.87 | X90: 75.72 | Y90: 75.72
B91: 56 | D91: 2029-06-28 | E91: 4 | F91: 2029-06-28 | G91: 31 | H91: 1512 | I91: 26,555.26 | J91: 1,332.18 | K91: 496.48 | L91: 74.53 | M91: 638.04 | N91: 0 | O91: 2,541.23 | P91: 25,223.08 | Q91: 0.35 | R91: 0.35 | T91: 2541.229821 | U91: 1512 | V91: 2.07 | W91: 1,228.43 | X91: 74.53 | Y91: 74.53
B92: 57 | D92: 2029-07-28 | E92: 6 | F92: 2029-07-28 | G92: 30 | H92: 1542 | I92: 25,223.08 | J92: 1,378.46 | K92: 456.22 | L92: 68.51 | M92: 638.04 | N92: 0 | O92: 2,541.23 | P92: 23,844.62 | Q92: 0.35 | R92: 0.35 | T92: 2541.229821 | U92: 1542 | V92: 2.10 | W92: 1,210.84 | X92: 68.51 | Y92: 68.51
B93: 58 | D93: 2029-08-28 | E93: 2 | F93: 2029-08-28 | G93: 31 | H93: 1573 | I93: 23,844.62 | J93: 1,390.46 | K93: 445.80 | L93: 66.92 | M93: 638.04 | N93: 0 | O93: 2,541.23 | P93: 22,454.15 | Q93: 0.34 | R93: 0.34 | T93: 2541.229821 | U93: 1573 | V93: 2.13 | W93: 1,192.93 | X93: 66.92 | Y93: 66.92
B94: 59 | D94: 2029-09-28 | E94: 5 | F94: 2029-09-28 | G94: 31 | H94: 1604 | I94: 22,454.15 | J94: 1,420.36 | K94: 419.81 | L94: 63.02 | M94: 638.04 | N94: 0 | O94: 2,541.23 | P94: 21,033.79 | Q94: 0.33 | R94: 0.33 | T94: 2541.229821 | U94: 1604 | V94: 2.16 | W94: 1,175.28 | X94: 63.02 | Y94: 63.02
B95: 60 | D95: 2029-10-28 | E95: 7 | F95: 2029-10-29 | G95: 31 | H95: 1635 | I95: 21,033.79 | J95: 1,450.91 | K95: 393.25 | L95: 59.03 | M95: 638.04 | N95: 0 | O95: 2,541.23 | P95: 19,582.88 | Q95: 0.33 | R95: 0.33 | T95: 2541.229821 | U95: 1635 | V95: 2.19 | W95: 1,157.89 | X95: 59.03 | Y95: 59.03
B96: 61 | D96: 2029-11-28 | E96: 3 | F96: 2029-11-28 | G96: 30 | H96: 1665 | I96: 19,582.88 | J96: 1,495.80 | K96: 354.21 | L96: 53.19 | M96: 638.04 | N96: 0 | O96: 2,541.23 | P96: 18,087.09 | Q96: 0.32 | R96: 0.32 | T96: 2541.229821 | U96: 1665 | V96: 2.23 | W96: 1,141.31 | X96: 53.19 | Y96: 53.19
B97: 62 | D97: 2029-12-28 | E97: 5 | F97: 2029-12-28 | G97: 30 | H97: 1695 | I97: 18,087.09 | J97: 1,526.91 | K97: 327.15 | L97: 49.12 | M97: 638.04 | N97: 0 | O97: 2,541.23 | P97: 16,560.18 | Q97: 0.31 | R97: 0.31 | T97: 2541.229821 | U97: 1695 | V97: 2.26 | W97: 1,124.97 | X97: 49.12 | Y97: 49.12
B98: 63 | D98: 2030-01-28 | E98: 1 | F98: 2030-01-28 | G98: 31 | H98: 1726 | I98: 16,560.18 | J98: 1,547.10 | K98: 309.61 | L98: 46.48 | M98: 638.04 | N98: 0 | O98: 2,541.23 | P98: 15,013.08 | Q98: 0.31 | R98: 0.31 | T98: 2541.229821 | U98: 1726 | V98: 2.29 | W98: 1,108.33 | X98: 46.48 | Y98: 46.48
B99: 64 | D99: 2030-02-28 | E99: 4 | F99: 2030-02-28 | G99: 31 | H99: 1757 | I99: 15,013.08 | J99: 1,580.37 | K99: 280.69 | L99: 42.14 | M99: 638.04 | N99: 0 | O99: 2,541.23 | P99: 13,432.71 | Q99: 0.30 | R99: 0.30 | T99: 2541.229821 | U99: 1757 | V99: 2.33 | W99: 1,091.93 | X99: 42.14 | Y99: 42.14
B100: 65 | D100: 2030-03-28 | E100: =IF(B100<=$D$18,WEEKDAY(D100,2),"") -> 4 | F100: 2030-03-28 | G100: 28 | H100: 1785 | I100: 13,432.71 | J100: =IF(B100>D$18,"",O100-N100-M100-L100-K100) -> 1,642.51 | K100: =IF(B100>D$18,"",((1+D$23)^(G100/360)-1)*I100) -> 226.63 | L100: =IF(B100>D$18,"",((1+D$13)^(G100/30)-1)*I100) -> 34.05 | M100: =IF(B100>D$18,"",D$25*D$26) -> 638.04 | N100: =IF(B100>D$18,"",D$27) -> 0 | O100: =IF(B100>D$18,"",IF(B100=D$18,I100+K100+L100+M100+N100,IF(AND(D$21=2,MONTH(F100)=7),2*D$28,IF(AND(D$22=2,MONTH(F100)=12),2*D$28,D$28)))) -> 2,541.23 | P100: =IF(B100>D$18,"",I100-J100) -> 11,790.20 | Q100: =IFERROR(IF(AND(MONTH(F100)=7,D$21=2),2/(1+D$24)^(H100/360),IF(AND(MONTH(F100)=12,D$22=2),2/(1+D$24)^(H100/360),1/(1+D$24)^(H100/360))),"") -> 0.29 | R100: =IFERROR(1/(1+D$24)^(H100/360),"") -> 0.29 | T100: 2541.229821 | U100: =H100 -> 1785 | V100: =IFERROR((1+D$30)^(U100/360),"") -> 2.36 | W100: =IFERROR(ROUND(T100/V100,2),"") -> 1,077.33 | X100: 34.05 | Y100: 34.05
B101: 66 | D101: =IF(B101>$D$18,"",EDATE(D100,1)) -> 2030-04-28 | E101: 7 | F101: =IF(E101=7,D101+1,D101) -> 2030-04-29 | G101: =IF(B101>D$18,"",F101-F100) -> 32 | H101: =IFERROR(G101+H100,"") -> 1817 | I101: =IF(B101>D$18,"",P100) -> 11,790.20 | J101: 1,641.42 | K101: 227.61 | L101: 34.16 | M101: 638.04 | N101: 0 | O101: 2,541.23 | P101: 10,148.78 | Q101: 0.29 | R101: 0.29 | T101: =IFERROR(J101+K101+L101+M101+N101,"") -> 2541.229821 | U101: 1817 | V101: 2.40 | W101: 1,060.88 | X101: =IF(O101="",0,L101/((1+$I$9)^B101)) -> 34.16 | Y101: 34.16
B102: 67 | D102: 2030-05-28 | E102: 2 | F102: 2030-05-28 | G102: 29 | H102: 1846 | I102: 10,148.78 | J102: 1,699.15 | K102: 177.39 | L102: 26.64 | M102: 638.04 | N102: 0 | O102: 2,541.23 | P102: 8,449.63 | Q102: 0.28 | R102: 0.28 | T102: 2541.229821 | U102: 1846 | V102: 2.43 | W102: 1,046.20 | X102: 26.64 | Y102: =IF(O102="",0,L102/((1+$Q$28)^B102)) -> 26.64
B103: 68 | D103: 2030-06-28 | E103: 5 | F103: 2030-06-28 | G103: 31 | H103: 1877 | I103: 8,449.63 | J103: 1,721.50 | K103: 157.98 | L103: 23.72 | M103: 638.04 | N103: 0 | O103: 2,541.23 | P103: 6,728.13 | Q103: 0.28 | R103: 0.28 | T103: 2541.229821 | U103: 1877 | V103: 2.47 | W103: 1,030.72 | X103: 23.72 | Y103: 23.72
B104: 69 | D104: 2030-07-28 | E104: 7 | F104: 2030-07-29 | G104: 31 | H104: 1908 | I104: 6,728.13 | J104: 1,758.52 | K104: 125.79 | L104: 18.88 | M104: 638.04 | N104: 0 | O104: 2,541.23 | P104: 4,969.61 | Q104: 0.27 | R104: 0.27 | T104: 2541.229821 | U104: 1908 | V104: 2.50 | W104: 1,015.47 | X104: 18.88 | Y104: 18.88
B105: 70 | D105: 2030-08-28 | E105: 3 | F105: 2030-08-28 | G105: 30 | H105: 1938 | I105: 4,969.61 | J105: 1,799.80 | K105: 89.89 | L105: 13.50 | M105: 638.04 | N105: 0 | O105: 2,541.23 | P105: 3,169.81 | Q105: 0.26 | R105: 0.26 | T105: 2541.229821 | U105: 1938 | V105: 2.54 | W105: 1,000.93 | X105: 13.50 | Y105: 13.50
B106: 71 | D106: 2030-09-28 | E106: 6 | F106: 2030-09-28 | G106: 31 | H106: 1969 | I106: 3,169.81 | J106: 1,835.03 | K106: 59.26 | L106: 8.90 | M106: 638.04 | N106: 0 | O106: 2,541.23 | P106: 1,334.78 | Q106: 0.26 | R106: 0.26 | T106: 2541.229821 | U106: 1969 | V106: 2.58 | W106: 986.12 | X106: 8.90 | Y106: 8.90
B107: 72 | D107: 2030-10-28 | E107: 1 | F107: 2030-10-28 | G107: 30 | H107: 1999 | I107: 1,334.78 | J107: 1,334.78 | K107: 24.14 | L107: 3.63 | M107: 638.04 | N107: 0 | O107: 2,000.58 | P107: 0 | Q107: 0.25 | R107: 0.25 | T107: 2000.584644 | U107: 1999 | V107: 2.61 | W107: 765.21 | X107: 3.63 | Y107: 3.63
B108: 73 | X108: 0 | Y108: 0
B109: 74 | X109: 0 | Y109: 0
B110: 75 | X110: 0 | Y110: 0
B111: 76 | X111: 0 | Y111: 0
B112: 77 | X112: 0 | Y112: 0
B113: 78 | X113: 0 | Y113: 0
B114: 79 | X114: 0 | Y114: 0
B115: 80 | X115: 0 | Y115: 0
B116: 81 | X116: 0 | Y116: 0
B117: 82 | X117: 0 | Y117: 0
B118: 83 | X118: 0 | Y118: 0
B119: 84 | X119: 0 | Y119: 0
B120: 85 | X120: 0 | Y120: 0
B121: 86 | X121: 0 | Y121: 0
B122: 87 | X122: 0 | Y122: 0
B123: 88 | X123: 0 | Y123: 0
B124: 89 | X124: 0 | Y124: 0
B125: 90 | X125: 0 | Y125: 0
B126: 91 | X126: 0 | Y126: 0
B127: 92 | X127: 0 | Y127: 0
B128: 93 | X128: 0 | Y128: 0
B129: 94 | X129: 0 | Y129: 0
B130: 95 | X130: 0 | Y130: 0
B131: 96 | X131: 0 | Y131: 0
B132: 97 | X132: 0 | Y132: 0
B133: 98 | X133: 0 | Y133: 0
B134: 99 | X134: 0 | Y134: 0
B135: 100 | X135: 0 | Y135: 0
B136: 101 | X136: 0 | Y136: 0
B137: 102 | X137: 0 | Y137: 0
B138: 103 | X138: 0 | Y138: 0
B139: 104 | X139: 0 | Y139: 0
B140: 105 | X140: 0 | Y140: 0
B141: 106 | X141: 0 | Y141: 0
B142: 107 | X142: 0 | Y142: 0
B143: 108 | X143: 0 | Y143: 0
B144: 109 | X144: 0 | Y144: 0
B145: 110 | X145: 0 | Y145: 0
B146: 111 | X146: 0 | Y146: 0
B147: 112 | X147: 0 | Y147: 0
B148: 113 | X148: 0 | Y148: 0
B149: 114 | X149: 0 | Y149: 0
B150: 115 | X150: 0 | Y150: 0
B151: 116 | X151: 0 | Y151: 0
B152: 117 | X152: 0 | Y152: 0
B153: 118 | X153: 0 | Y153: 0
B154: 119 | X154: 0 | Y154: 0
B155: 120 | X155: 0 | Y155: 0
B156: 121 | X156: 0 | Y156: 0
B157: 122 | X157: 0 | Y157: 0
B158: 123 | X158: 0 | Y158: 0
B159: 124 | X159: 0 | Y159: 0
B160: 125 | X160: 0 | Y160: 0
B161: 126 | X161: 0 | Y161: 0
B162: 127 | X162: 0 | Y162: 0
B163: 128 | X163: 0 | Y163: 0
B164: 129 | E164: =IF(B164<=$D$18,WEEKDAY(D164,2),"") ->  | J164: =IF(B164>D$18,"",O164-N164-M164-L164-K164) ->  | K164: =IF(B164>D$18,"",((1+D$23)^(G164/360)-1)*I164) ->  | L164: =IF(B164>D$18,"",((1+D$13)^(G164/30)-1)*I164) ->  | M164: =IF(B164>D$18,"",D$25*D$26) ->  | N164: =IF(B164>D$18,"",D$27) ->  | O164: =IF(B164>D$18,"",IF(B164=D$18,I164+K164+L164+M164+N164,IF(AND(D$21=2,MONTH(F164)=7),2*D$28,IF(AND(D$22=2,MONTH(F164)=12),2*D$28,D$28)))) ->  | P164: =IF(B164>D$18,"",I164-J164) ->  | Q164: =IFERROR(IF(AND(MONTH(F164)=7,D$21=2),2/(1+D$24)^(H164/360),IF(AND(MONTH(F164)=12,D$22=2),2/(1+D$24)^(H164/360),1/(1+D$24)^(H164/360))),"") ->  | R164: =IFERROR(1/(1+D$24)^(H164/360),"") ->  | U164: =H164 ->  | V164: =IFERROR((1+D$30)^(U164/360),"") ->  | W164: =IFERROR(ROUND(T164/V164,2),"") ->  | X164: 0 | Y164: 0
B165: 130 | D165: =IF(B165>$D$18,"",EDATE(D164,1)) ->  | F165: =IF(E165=7,D165+1,D165) ->  | G165: =IF(B165>D$18,"",F165-F164) ->  | H165: =IFERROR(G165+H164,"") ->  | I165: =IF(B165>D$18,"",P164) ->  | T165: =IFERROR(J165+K165+L165+M165+N165,"") ->  | X165: =IF(O165="",0,L165/((1+$I$9)^B165)) -> 0 | Y165: 0
B166: 131 | X166: 0 | Y166: =IF(O166="",0,L166/((1+$Q$28)^B166)) -> 0
B167: 132 | X167: 0 | Y167: 0
B168: 133 | X168: 0 | Y168: 0
B169: 134 | X169: 0 | Y169: 0
B170: 135 | X170: 0 | Y170: 0
B171: 136 | X171: 0 | Y171: 0
B172: 137 | X172: 0 | Y172: 0
B173: 138 | X173: 0 | Y173: 0
B174: 139 | X174: 0 | Y174: 0
B175: 140 | X175: 0 | Y175: 0
B176: 141 | X176: 0 | Y176: 0
B177: 142 | X177: 0 | Y177: 0
B178: 143 | X178: 0 | Y178: 0
B179: 144 | X179: 0 | Y179: 0
B180: 145 | X180: 0 | Y180: 0
B181: 146 | X181: 0 | Y181: 0
B182: 147 | X182: 0 | Y182: 0
B183: 148 | X183: 0 | Y183: 0
B184: 149 | X184: 0 | Y184: 0
B185: 150 | X185: 0 | Y185: 0
B186: 151 | X186: 0 | Y186: 0
B187: 152 | X187: 0 | Y187: 0
B188: 153 | X188: 0 | Y188: 0
B189: 154 | X189: 0 | Y189: 0
B190: 155 | X190: 0 | Y190: 0
B191: 156 | X191: 0 | Y191: 0
B192: 157 | X192: 0 | Y192: 0
B193: 158 | X193: 0 | Y193: 0
B194: 159 | X194: 0 | Y194: 0
B195: 160 | X195: 0 | Y195: 0
B196: 161 | X196: 0 | Y196: 0
B197: 162 | X197: 0 | Y197: 0
B198: 163 | X198: 0 | Y198: 0
B199: 164 | X199: 0 | Y199: 0
B200: 165 | X200: 0 | Y200: 0
B201: 166 | X201: 0 | Y201: 0
B202: 167 | X202: 0 | Y202: 0
B203: 168 | X203: 0 | Y203: 0
B204: 169 | X204: 0 | Y204: 0
B205: 170 | X205: 0 | Y205: 0
B206: 171 | X206: 0 | Y206: 0
B207: 172 | X207: 0 | Y207: 0
B208: 173 | X208: 0 | Y208: 0
... 187 more rows

Sheet TarifarioBD (hidden)
A1: TARIFA | B1: PRODUCTO | C1: TIPO_SEGURO | D1: Valor | E1: Columna1 | F1: Columna2 | J1: TARIFA | K1: PRODUCTO | L1: TIPO_SEGURO | N1: TIPO_SEGURO | O1: Valor | Q1: Cuota Julio | R1: Cuota Diciembre
A2: TARIFA TITULAR | B2: Préstamos Vehiculares (Clientes) | C2: Seguro de Vida | D2: 3.1400% | E2: =+CONCATENATE(TarifarioPrincipal[[#This Row],[TARIFA]],TarifarioPrincipal[[#This Row],[PRODUCTO]],TarifarioPrincipal[[#This Row],[TIPO_SEGURO]]) -> TARIFA TITULARPréstamos Vehiculares (Clientes)Seguro de Vida | F2: =+TarifarioPrincipal[[#This Row],[Valor]] -> 3.1400% | J2: TARIFA TITULAR | K2: Préstamos Vehiculares (Clientes) | L2: Seguro de Vida | N2: Seguro Endosado | O2: 0.0000% | Q2: 1 | R2: 1
A3: TARIFA TITULAR | B3: Préstamos Vehiculares (Empleados) | C3: Seguro de Vida | D3: 1.5300% | E3: =+CONCATENATE(TarifarioPrincipal[[#This Row],[TARIFA]],TarifarioPrincipal[[#This Row],[PRODUCTO]],TarifarioPrincipal[[#This Row],[TIPO_SEGURO]]) -> TARIFA TITULARPréstamos Vehiculares (Empleados)Seguro de Vida | F3: =+TarifarioPrincipal[[#This Row],[Valor]] -> 1.5300% | J3: TARIFA TITULAR + CONYUGE | K3: Préstamos Vehiculares (Empleados) | L3: Seguro de Desgravamen | N3: PC - Auto y 4x4 sin GPS Lima | O3: 0.3544% | Q3: 2 | R3: 2
A4: TARIFA TITULAR | B4: Préstamos Vehiculares (Clientes) | C4: Seguro de Desgravamen | D4: 0.1045% | E4: =+CONCATENATE(TarifarioPrincipal[[#This Row],[TARIFA]],TarifarioPrincipal[[#This Row],[PRODUCTO]],TarifarioPrincipal[[#This Row],[TIPO_SEGURO]]) -> TARIFA TITULARPréstamos Vehiculares (Clientes)Seguro de Desgravamen | F4: =+TarifarioPrincipal[[#This Row],[Valor]] -> 0.1045% | L4: Seguro de Desgravamen con Devolución | N4: PC - Auto y 4x4 sin GPS Provincia | O4: 0.2735%
A5: TARIFA TITULAR | B5: Préstamos Vehiculares (Empleados) | C5: Seguro de Desgravamen | D5: 0.0510% | E5: =+CONCATENATE(TarifarioPrincipal[[#This Row],[TARIFA]],TarifarioPrincipal[[#This Row],[PRODUCTO]],TarifarioPrincipal[[#This Row],[TIPO_SEGURO]]) -> TARIFA TITULARPréstamos Vehiculares (Empleados)Seguro de Desgravamen | F5: =+TarifarioPrincipal[[#This Row],[Valor]] -> 0.0510% | N5: PC - Auto/4x4 con GPS Lima/Valor >50k | O5: 0.4001%
A6: TARIFA TITULAR | B6: Préstamos Vehiculares (Clientes) | C6: Seguro de Desgravamen con Devolución | D6: 0.1358% | E6: =+CONCATENATE(TarifarioPrincipal[[#This Row],[TARIFA]],TarifarioPrincipal[[#This Row],[PRODUCTO]],TarifarioPrincipal[[#This Row],[TIPO_SEGURO]]) -> TARIFA TITULARPréstamos Vehiculares (Clientes)Seguro de Desgravamen con Devolución | F6: =+TarifarioPrincipal[[#This Row],[Valor]] -> 0.1358% | N6: PC - Auto/4x4 con GPS Prov/Valor >50k | O6: 0.3444%
A7: TARIFA TITULAR | B7: Préstamos Vehiculares (Empleados) | C7: Seguro de Desgravamen con Devolución | D7: 0.1020% | E7: =+CONCATENATE(TarifarioPrincipal[[#This Row],[TARIFA]],TarifarioPrincipal[[#This Row],[PRODUCTO]],TarifarioPrincipal[[#This Row],[TIPO_SEGURO]]) -> TARIFA TITULARPréstamos Vehiculares (Empleados)Seguro de Desgravamen con Devolución | F7: =+TarifarioPrincipal[[#This Row],[Valor]] -> 0.1020% | N7: PC - Auto y 4x4 Med. Riesgo Lima con GPS | O7: 0.5064%
A8: TARIFA TITULAR + CONYUGE | B8: Préstamos Vehiculares (Clientes) | C8: Seguro de Vida | D8: 6.2800% | E8: =+CONCATENATE(TarifarioPrincipal[[#This Row],[TARIFA]],TarifarioPrincipal[[#This Row],[PRODUCTO]],TarifarioPrincipal[[#This Row],[TIPO_SEGURO]]) -> TARIFA TITULAR + CONYUGEPréstamos Vehiculares (Clientes)Seguro de Vida | F8: =+TarifarioPrincipal[[#This Row],[Valor]] -> 6.2800% | N8: PC - Auto y 4x4 Med. Riesgo Provincia con GPS | O8: 0.3950%
A9: TARIFA TITULAR + CONYUGE | B9: Préstamos Vehiculares (Empleados) | C9: Seguro de Vida | D9: 3.0600% | E9: =+CONCATENATE(TarifarioPrincipal[[#This Row],[TARIFA]],TarifarioPrincipal[[#This Row],[PRODUCTO]],TarifarioPrincipal[[#This Row],[TIPO_SEGURO]]) -> TARIFA TITULAR + CONYUGEPréstamos Vehiculares (Empleados)Seguro de Vida | F9: =+TarifarioPrincipal[[#This Row],[Valor]] -> 3.0600% | N9: PC - Vehic. Chinos (Autos y Rurales) Lima | O9: 0.3747%
A10: TARIFA TITULAR + CONYUGE | B10: Préstamos Vehiculares (Clientes) | C10: Seguro de Desgravamen | D10: 0.2090% | E10: =+CONCATENATE(TarifarioPrincipal[[#This Row],[TARIFA]],TarifarioPrincipal[[#This Row],[PRODUCTO]],TarifarioPrincipal[[#This Row],[TIPO_SEGURO]]) -> TARIFA TITULAR + CONYUGEPréstamos Vehiculares (Clientes)Seguro de Desgravamen | F10: =+TarifarioPrincipal[[#This Row],[Valor]] -> 0.2090% | N10: PC - Vehic. Chinos (Autos y Rurales) Provincia | O10: 0.3747%
A11: TARIFA TITULAR + CONYUGE | B11: Préstamos Vehiculares (Empleados) | C11: Seguro de Desgravamen | D11: 0.1020% | E11: =+CONCATENATE(TarifarioPrincipal[[#This Row],[TARIFA]],TarifarioPrincipal[[#This Row],[PRODUCTO]],TarifarioPrincipal[[#This Row],[TIPO_SEGURO]]) -> TARIFA TITULAR + CONYUGEPréstamos Vehiculares (Empleados)Seguro de Desgravamen | F11: =+TarifarioPrincipal[[#This Row],[Valor]] -> 0.1020% | N11: PC - Camionetas Pick up/sin GPS/ Lima | O11: 0.4608%
A12: TARIFA TITULAR + CONYUGE | B12: Préstamos Vehiculares (Clientes) | C12: Seguro de Desgravamen con Devolución | D12: 0.2716% | E12: =+CONCATENATE(TarifarioPrincipal[[#This Row],[TARIFA]],TarifarioPrincipal[[#This Row],[PRODUCTO]],TarifarioPrincipal[[#This Row],[TIPO_SEGURO]]) -> TARIFA TITULAR + CONYUGEPréstamos Vehiculares (Clientes)Seguro de Desgravamen con Devolución | F12: =+TarifarioPrincipal[[#This Row],[Valor]] -> 0.2716% | N12: PC - Camionetas Pick up/sin GPS/ Provincia | O12: 0.4608%
A13: TARIFA TITULAR + CONYUGE | B13: Préstamos Vehiculares (Empleados) | C13: Seguro de Desgravamen con Devolución | D13: 0.2040% | E13: =+CONCATENATE(TarifarioPrincipal[[#This Row],[TARIFA]],TarifarioPrincipal[[#This Row],[PRODUCTO]],TarifarioPrincipal[[#This Row],[TIPO_SEGURO]]) -> TARIFA TITULAR + CONYUGEPréstamos Vehiculares (Empleados)Seguro de Desgravamen con Devolución | F13: =+TarifarioPrincipal[[#This Row],[Valor]] -> 0.2040% | N13: PC - Camionetas Pick up/con GPS/ Lima | O13: 0.5317%
N14: Camionetas Pick up/con GPS/ Provincia | O14: 0.5317%

Sheet CostoCapBD (hidden)
A1: TARIFA | B1: CostoCapital
A2: TARIFA TITULAR | B2: 0.2871%
A3: TARIFA TITULAR + CONYUGE | B3: 0.2871%
